Workbook

Sheet 1. Info
AB1: Algoma Power Inc.
AB2: Atikokan Hydro Inc.
AB3: Attawapiskat Power Corporation
AB4: Bluewater Power Distribution Corp.
AB5: Brant County Power
AB6: Brantford Power Inc.
AB7: Burlington Hydro Inc.
AB8: Cambridge and North Dumfries Hydro
AB9: Canadian Niagara Power Inc. – Eastern Ontario Power/Fort Erie/Port Colborne
AB10: Centre Wellington Hydro Ltd.
AB11: Chapleau Public Utilities Corporation
AB12: COLLUS Power Corp.
AB13: Cooperative Hydro Embrun Inc.
AB14: E.L.K. Energy Inc.
C15: Utility Name | D15: Oshawa PUC Networks Inc. | AB15: Enersource Hydro Mississauga Inc.
AB16: Entegrus Powerlines Inc.
C17: Assigned EB Number | D17: EB-2012-0157 | AB17: ENWIN Utilities Ltd.
AB18: Erie Thames Powerlines Corp.
C19: Name and Title | D19: David Savage, Corporate Controller | AB19: Espanola Regional Hydro Distribution Corporation
AB20: Essex Powerlines Corporation
C21: Phone Number | D21: 905-743-5219 | AB21: Festival Hydro Inc.
AB22: Fort Albany Power Corporation
C23: Email Address | D23: dsavage@opuc.on.ca | AB23: Fort Frances Power Corporation
AB24: Greater Sudbury Hydro Inc.
C25: Date | D25: 26 July 2012 | AB25: Grimsby Power Inc.
AB26: Guelph Hydro Electric Systems Inc.
C27: Last COS Re-based Year | D27: 2012 | AB27: Haldimand County Hydro Inc.
AB28: Halton Hills Hydro Inc.
AB29: Hearst Power Distribution Co. Ltd.
A30: Note: Drop-down lists are shaded blue; Input cells are shaded green.
AB32: Horizon Utilities Corporation
AB33: Hydro 2000 Inc.
AB34: Hydro Hawkesbury Inc.
AB35: Hydro One Brampton Networks Inc.
AB36: Hydro One Networks Inc.
AB37: Hydro One Remote Communities Inc.
AB38: Hydro Ottawa Limited
AB39: Innisfil Hydro Dist. Systems Limited
AB40: Kashechewan Power Corporation
AB41: Kenora Hydro Electric Corporation Ltd.
AB42: Kingston Hydro Corporation
AB43: Kitchener-Wilmot Hydro Inc.
AB44: Lakefront Utilities Inc.
AB45: Lakeland Power Distribution Ltd.
AB46: London Hydro Inc.
AB47: Midland Power Utility Corporation
AB48: Milton Hydro Distribution Inc.
AB49: Newmarket – Tay Power Distribution Ltd.
AB50: Niagara Peninsula Energy Inc.
AB51: Niagara-on-the-Lake Hydro Inc.
AB52: Norfolk Power Distribution Ltd.
AB53: North Bay Hydro Distribution Limited
AB54: Northern Ontario Wires Inc.
AB55: Oakville Hydro Distribution Inc.
AB56: Orangeville Hydro Limited
AB57: Orillia Power Distribution Corp.
AB58: Oshawa PUC Networks Inc.
AB59: Ottawa River Power Corporation
AB60: Parry Sound Power Corporation
AB61: Peterborough Distribution Inc.
AB62: PowerStream Inc.
AB63: PUC Distribution Inc.
AB64: Renfrew Hydro Inc.
AB65: Rideau St. Lawrence Distribution Inc.
AB66: St. Thomas Energy Inc.
AB67: Sioux Lookout Hydro Inc.
AB68: Thunder Bay Hydro Electricity Distribution
AB69: Tillsonburg Hydro Inc.
AB70: Toronto Hydro-Electric System Limited
AB71: Veridian Connections Inc.
AB72: Wasaga Distribution Inc.
AB73: Waterloo North Hydro Inc.
AB74: Welland Hydro Electric System Corp.
AB75: Wellington North Power Inc.
AB76: West Coast Huron Energy Inc.
AB77: Westario Power Inc.
AB78: Whitby Hydro Electric Corporation
AB79: Woodstock Hydro Services Inc.

Sheet 2. Table of Contents
D20: 1. Info | I20: 7. Current Wholesale
D22: 2. Table of Contents | I22: 8. Forecast Wholesale
D24: 3. Rate Classes | I24: 9. Adj Network to Current WS
D26: 4. RRR Data | I26: 10. Adj Conn. to Current WS
D28: 5. UTRs and Sub-Transmission | I28: 11. Adj Network to Forecast WS
D30: 6. Historical Wholesale | I30: 12. Adj Conn. to Forecast WS
I32: 13. Final 2013 RTS Rates

Sheet 3. Rate Classes
C13: 1. Select the appropriate rate classes that appear on your most recent Board-Approved Tariff of Rates and Charges. 2. Enter the RTS Network and Connection Rate as it appears on the Tariff of Rates and Charges
C22: Rate Class | H22: Unit | J22: RTSR-Network | M22: RTSR-Connection
C24: Residential | H24: kWh | J24: 0.0066 | M24: 0.0056 | Q24: =IF(OR(ISBLANK(C24), ISERROR(FIND("Choose", C24))=FALSE), 0, 1) -> 1 | R24: ="C" & ROW(C24) -> C24 | S24: =IF(OR(C24="General Service Intermediate Rate Class 1,000 To 4,999 kW (formerly General Service > 50 kW Customers)", C24="General Service Intermediate Rate Class 1,000 To 4,999 kW (formerly Large Use Customers)"), "x", "") ->  | AB24: Choose Rate Class
C25: General Service Less Than 50 kW | H25: kWh | J25: 0.006 | M25: 0.0051 | Q25: 1 | R25: C25 | S25: =IF(OR(C25="General Service Intermediate Rate Class 1,000 To 4,999 kW (formerly General Service > 50 kW Customers)", C25="General Service Intermediate Rate Class 1,000 To 4,999 kW (formerly Large Use Customers)"), "x", "") ->  | AB25: Residential
C26: General Service 50 to 999 kW | H26: kW | J26: 2.1851 | M26: 1.837 | Q26: 1 | R26: C26 | AB26: Residential Regular
C27: General Service 50 to 999 kW - Interval Metered | H27: kW | J27: 2.8007 | M27: 2.3336 | Q27: 1 | R27: C27 | AB27: Residential Urban
C28: General Service 1,000 to 4,999 kW | H28: kW | J28: 2.8007 | M28: 2.3336 | Q28: 1 | R28: C28 | AB28: Residential Urban Year-Round
C29: Large Use | H29: kW | J29: 2.9841 | M29: 2.5463 | Q29: 1 | R29: C29 | AB29: Residential Suburban
C30: Unmetered Scattered Load | H30: kWh | J30: 0.006 | M30: 0.0051 | Q30: 1 | R30: C30 | AB30: Residential Suburban Seasonal
C31: Sentinel Lighting | H31: kW | J31: 1.5072 | M31: 2.1566 | Q31: 1 | R31: C31 | AB31: Residential Suburban Year Round
C32: Street Lighting | H32: kW | J32: 1.4816 | M32: 2.12 | Q32: 1 | R32: C32 | AB32: Residential - Time of Use
C33: Choose Rate Class | Q33: 0 | R33: C33 | AB33: Residential - Hensall
C34: Choose Rate Class | Q34: 0 | R34: C34 | AB34: Residential – High Density [R1]
C35: Choose Rate Class | Q35: 0 | R35: C35 | AB35: Residential – Normal Density [R2]
C36: Choose Rate Class | Q36: 0 | R36: C36 | AB36: Seasonal Residential – High Density [R3]
C37: Choose Rate Class | Q37: 0 | R37: C37 | AB37: Seasonal Residential – Normal Density [R4]
C38: Choose Rate Class | Q38: 0 | R38: C38 | AB38: Residential – Urban [UR]
C39: Choose Rate Class | Q39: 0 | R39: C39
C40: Choose Rate Class | Q40: 0 | R40: C40 | AB40: General Service Less Than 50 kW
C41: Choose Rate Class | Q41: 0 | R41: C41 | AB41: General Service Less Than 50 kW – Single Phase energy-billed [G1]
C42: Choose Rate Class | Q42: 0 | R42: C42 | AB42: General Service Less Than 50 kW – Three Phase energy-billed [G3]
C43: Choose Rate Class | Q43: 0 | R43: C43 | AB43: General Service Less Than 50 kW – Transmission Class energy-billed [T]
C44: Choose Rate Class | Q44: 0 | R44: C44 | AB44: General Service Less Than 50 kW – Urban energy-billed [UG]
C45: Choose Rate Class | Q45: 0 | R45: C45 | AB45: Westport Sewage Treatment Plant
S46: =COUNTIF(S24:S45, "x") -> 0 | AB46: Small Commercial and USL - per meter
AB47: Small Commercial and USL - per connection
AB48: Farms – Single Phase energy-billed [F1]
AB50: General Service 50 to 499 kW
AB51: General Service 50 to 699 kW
AB52: General Service 50 to 999 kW
AB53: General Service 50 to 999 kW - Interval Metered
AB54: General Service 50 to 1,000 kW
AB55: General Service 50 to 1,000 kW - Interval Meters
AB56: General Service 50 to 1,000 kW - Non Interval Meters
AB57: General Service 50 to 1,499 kW
AB58: General Service 50 to 1,499 kW - Interval Metered
AB59: General Service 50 to 2,499 kW
AB60: General Service 50 to 2,999 kW
AB61: General Service 50 to 2,999 kW - Time of Use
AB62: General Service 50 to 4,999 kW
AB63: General Service 50 to 4,999 kW – Interval Metered
AB64: General Service 50 to 4,999 kW - Time of Use
AB65: General Service 50 to 4,999 kW (CoGeneration)
AB66: General Service 50 to 4,999 kW (formerly Time of Use)
AB67: General Service 500 to 4,999 kW
AB68: General Service 700 to 4,999 kW
AB69: General Service 1,000 to 2,999 kW
AB70: General Service 1,000 to 4,999 kW
AB71: General Service 1,000 to 4,999 kW - Interval Meters
AB72: General Service 1,000 To 4,999 kW (co-generation)
AB73: General Service Greater Than 1,000 kW
AB74: General Service Intermediate Rate Class 1,000 To 4,999 kW (formerly Large Use Customers)
AB75: General Service Intermediate Rate Class 1,000 To 4,999 kW (formerly General Service > 50 kW Customers)
AB76: General Service 1,500 to 4,999 kW
AB77: General Service Equal To Or Greater Than 1,500 kW
AB78: General Service Equal To Or Greater Than 1,500 kW - Interval Metered
AB79: General Service Intermediate 1,000 To 4,999 kW
AB80: General Service 2,500 to 4,999 kW
AB81: General Service 3,000 to 4,999 kW
AB82: General Service 3,000 to 4,999 kW - Interval Metered
AB83: General Service 3,000 to 4,999 kW - Intermediate Use
AB84: General Service 3,000 to 4,999 kW - Time of Use
AB85: Intermediate With Self Generation
AB86: General Service - Commercial
AB87: General Service - Institutional
AB88: Farms – Three Phase energy-billed [F3]
AB90: Large Use
AB91: Large Use - Regular
AB92: Large Use > 5000 kW
AB93: Large Use - 3TS
AB94: Large Use - Ford Annex
AB96: Unmetered Scattered Load
AB98: Sentinel Lighting
AB100: Street Lighting
AB102: Embedded Distributor
AB103: Low Voltage Wheeling Charge Rate
AB105: Stand-By
AB106: Standby Power
AB107: Standby Power – INTERIM APPROVAL
AB108: Standby Power - APPROVED ON AN INTERIM BASIS
AB109: Standby - General Service 50 - 1,000 kW
AB110: Standby Power General Service 50 to 1,499 kW
AB111: Standby - General Service 1,000 - 5,000 kW
AB112: Standby Power General Service 1,500 to 4,999 kW
AB113: Standby - Large Use
AB114: Standby Power General Service Large Use
AB115: Standby Distribution Service

Sheet 4. RRR Data
B13: In the green shaded cells, enter the most recent reported RRR billing determinants. Please ensure that billing determinants are non-loss adjusted.
B24: Rate Class | D24: Unit | F24: Non-Loss Adjusted Metered kWh | G24: Non-Loss Adjusted Metered kW | H24: Applicable Loss Factor | J24: Load Factor | L24: Loss Adjusted Billed kWh | M24: Billed kW
B27: =IF('3. Rate Classes'!Q24=1,'3. Rate Classes'!C24, 0) -> Residential | D27: =IF(OR(VLOOKUP($B27, '3. Rate Classes'!$C$24:$H$45,6,0)=0, ISERROR(VLOOKUP($B27, '3. Rate Classes'!$C$24:$H$45,6,0))), "", VLOOKUP($B27, '3. Rate Classes'!$C$24:$H$45,6,0)) -> kWh | F27: 484617834 | H27: 1.0487 | J27: =IF(ISERROR(F27/(G27*30.4*24)), "", IF(D27="kW", F27/(G27*30.4*24), "")) ->  | L27: =IF(OR(H27=0, OR(ISBLANK(H27), TRIM(H27)="")), F27, F27*H27) -> 508218722.5 | M27: =IF(OR(H27=0, OR(ISBLANK(H27), TRIM(H27)="")), G27, G27) -> 0
B28: =IF('3. Rate Classes'!Q25=1,'3. Rate Classes'!C25, 0) -> General Service Less Than 50 kW | D28: =IF(OR(VLOOKUP($B28, '3. Rate Classes'!$C$24:$H$45,6,0)=0, ISERROR(VLOOKUP($B28, '3. Rate Classes'!$C$24:$H$45,6,0))), "", VLOOKUP($B28, '3. Rate Classes'!$C$24:$H$45,6,0)) -> kWh | F28: 135695878 | H28: =H27 -> 1.0487 | L28: =IF(OR(H28=0, OR(ISBLANK(H28), TRIM(H28)="")), F28, F28*H28) -> 142304267.3 | M28: =IF(OR(H28=0, OR(ISBLANK(H28), TRIM(H28)="")), G28, G28) -> 0
B29: =IF('3. Rate Classes'!Q26=1,'3. Rate Classes'!C26, 0) -> General Service 50 to 999 kW | D29: =IF(OR(VLOOKUP($B29, '3. Rate Classes'!$C$24:$H$45,6,0)=0, ISERROR(VLOOKUP($B29, '3. Rate Classes'!$C$24:$H$45,6,0))), "", VLOOKUP($B29, '3. Rate Classes'!$C$24:$H$45,6,0)) -> kW | F29: 161366304 | G29: 414036 | J29: 0.5341828272 | L29: 161366304 | M29: 414036
B30: =IF('3. Rate Classes'!Q27=1,'3. Rate Classes'!C27, 0) -> General Service 50 to 999 kW - Interval Metered | D30: =IF(OR(VLOOKUP($B30, '3. Rate Classes'!$C$24:$H$45,6,0)=0, ISERROR(VLOOKUP($B30, '3. Rate Classes'!$C$24:$H$45,6,0))), "", VLOOKUP($B30, '3. Rate Classes'!$C$24:$H$45,6,0)) -> kW | F30: =439442391-161366304-79908016 -> 198168071 | G30: 453034 | J30: 0.5995398567 | L30: 198168071 | M30: 453034
B31: =IF('3. Rate Classes'!Q28=1,'3. Rate Classes'!C28, 0) -> General Service 1,000 to 4,999 kW | D31: =IF(OR(VLOOKUP($B31, '3. Rate Classes'!$C$24:$H$45,6,0)=0, ISERROR(VLOOKUP($B31, '3. Rate Classes'!$C$24:$H$45,6,0))), "", VLOOKUP($B31, '3. Rate Classes'!$C$24:$H$45,6,0)) -> kW | F31: 79908016 | G31: 192700 | J31: 0.5683603957 | L31: 79908016 | M31: 192700
B32: =IF('3. Rate Classes'!Q29=1,'3. Rate Classes'!C29, 0) -> Large Use | D32: =IF(OR(VLOOKUP($B32, '3. Rate Classes'!$C$24:$H$45,6,0)=0, ISERROR(VLOOKUP($B32, '3. Rate Classes'!$C$24:$H$45,6,0))), "", VLOOKUP($B32, '3. Rate Classes'!$C$24:$H$45,6,0)) -> kW | F32: 37740699 | G32: 83704 | J32: 0.6179863775 | L32: 37740699 | M32: 83704
B33: =IF('3. Rate Classes'!Q30=1,'3. Rate Classes'!C30, 0) -> Unmetered Scattered Load | D33: =IF(OR(VLOOKUP($B33, '3. Rate Classes'!$C$24:$H$45,6,0)=0, ISERROR(VLOOKUP($B33, '3. Rate Classes'!$C$24:$H$45,6,0))), "", VLOOKUP($B33, '3. Rate Classes'!$C$24:$H$45,6,0)) -> kWh | F33: 2769028 | H33: =H27 -> 1.0487 | J33: =IF(ISERROR(F33/(G33*30.4*24)), "", IF(D33="kW", F33/(G33*30.4*24), "")) ->  | L33: 2903879.664 | M33: 0
B34: =IF('3. Rate Classes'!Q31=1,'3. Rate Classes'!C31, 0) -> Sentinel Lighting | D34: =IF(OR(VLOOKUP($B34, '3. Rate Classes'!$C$24:$H$45,6,0)=0, ISERROR(VLOOKUP($B34, '3. Rate Classes'!$C$24:$H$45,6,0))), "", VLOOKUP($B34, '3. Rate Classes'!$C$24:$H$45,6,0)) -> kW | F34: 38567 | G34: 115 | J34: 0.4596562738 | L34: 38567 | M34: 115
B35: =IF('3. Rate Classes'!Q32=1,'3. Rate Classes'!C32, 0) -> Street Lighting | D35: =IF(OR(VLOOKUP($B35, '3. Rate Classes'!$C$24:$H$45,6,0)=0, ISERROR(VLOOKUP($B35, '3. Rate Classes'!$C$24:$H$45,6,0))), "", VLOOKUP($B35, '3. Rate Classes'!$C$24:$H$45,6,0)) -> kW | F35: =10253017-38567 -> 10214450 | G35: =27830-115 -> 27715 | J35: 0.5051440928 | L35: 10214450 | M35: 27715
B36: =IF('3. Rate Classes'!Q33=1,'3. Rate Classes'!C33, 0) -> 0 | D36: =IF(OR(VLOOKUP($B36, '3. Rate Classes'!$C$24:$H$45,6,0)=0, ISERROR(VLOOKUP($B36, '3. Rate Classes'!$C$24:$H$45,6,0))), "", VLOOKUP($B36, '3. Rate Classes'!$C$24:$H$45,6,0)) ->  | L36: 0 | M36: 0
B37: =IF('3. Rate Classes'!Q34=1,'3. Rate Classes'!C34, 0) -> 0 | D37: =IF(OR(VLOOKUP($B37, '3. Rate Classes'!$C$24:$H$45,6,0)=0, ISERROR(VLOOKUP($B37, '3. Rate Classes'!$C$24:$H$45,6,0))), "", VLOOKUP($B37, '3. Rate Classes'!$C$24:$H$45,6,0)) ->  | L37: 0 | M37: 0
B38: =IF('3. Rate Classes'!Q35=1,'3. Rate Classes'!C35, 0) -> 0 | D38: =IF(OR(VLOOKUP($B38, '3. Rate Classes'!$C$24:$H$45,6,0)=0, ISERROR(VLOOKUP($B38, '3. Rate Classes'!$C$24:$H$45,6,0))), "", VLOOKUP($B38, '3. Rate Classes'!$C$24:$H$45,6,0)) ->  | L38: 0 | M38: 0
B39: =IF('3. Rate Classes'!Q36=1,'3. Rate Classes'!C36, 0) -> 0 | D39: =IF(OR(VLOOKUP($B39, '3. Rate Classes'!$C$24:$H$45,6,0)=0, ISERROR(VLOOKUP($B39, '3. Rate Classes'!$C$24:$H$45,6,0))), "", VLOOKUP($B39, '3. Rate Classes'!$C$24:$H$45,6,0)) ->  | L39: 0 | M39: 0
B40: =IF('3. Rate Classes'!Q37=1,'3. Rate Classes'!C37, 0) -> 0 | D40: =IF(OR(VLOOKUP($B40, '3. Rate Classes'!$C$24:$H$45,6,0)=0, ISERROR(VLOOKUP($B40, '3. Rate Classes'!$C$24:$H$45,6,0))), "", VLOOKUP($B40, '3. Rate Classes'!$C$24:$H$45,6,0)) ->  | L40: 0 | M40: 0
B41: =IF('3. Rate Classes'!Q38=1,'3. Rate Classes'!C38, 0) -> 0 | D41: =IF(OR(VLOOKUP($B41, '3. Rate Classes'!$C$24:$H$45,6,0)=0, ISERROR(VLOOKUP($B41, '3. Rate Classes'!$C$24:$H$45,6,0))), "", VLOOKUP($B41, '3. Rate Classes'!$C$24:$H$45,6,0)) ->  | L41: 0 | M41: 0
B42: =IF('3. Rate Classes'!Q39=1,'3. Rate Classes'!C39, 0) -> 0 | D42: =IF(OR(VLOOKUP($B42, '3. Rate Classes'!$C$24:$H$45,6,0)=0, ISERROR(VLOOKUP($B42, '3. Rate Classes'!$C$24:$H$45,6,0))), "", VLOOKUP($B42, '3. Rate Classes'!$C$24:$H$45,6,0)) ->  | L42: 0 | M42: 0
B43: =IF('3. Rate Classes'!Q40=1,'3. Rate Classes'!C40, 0) -> 0 | D43: =IF(OR(VLOOKUP($B43, '3. Rate Classes'!$C$24:$H$45,6,0)=0, ISERROR(VLOOKUP($B43, '3. Rate Classes'!$C$24:$H$45,6,0))), "", VLOOKUP($B43, '3. Rate Classes'!$C$24:$H$45,6,0)) ->  | L43: 0 | M43: 0
B44: =IF('3. Rate Classes'!Q41=1,'3. Rate Classes'!C41, 0) -> 0 | D44: =IF(OR(VLOOKUP($B44, '3. Rate Classes'!$C$24:$H$45,6,0)=0, ISERROR(VLOOKUP($B44, '3. Rate Classes'!$C$24:$H$45,6,0))), "", VLOOKUP($B44, '3. Rate Classes'!$C$24:$H$45,6,0)) ->  | L44: 0 | M44: 0
B45: =IF('3. Rate Classes'!Q42=1,'3. Rate Classes'!C42, 0) -> 0 | D45: =IF(OR(VLOOKUP($B45, '3. Rate Classes'!$C$24:$H$45,6,0)=0, ISERROR(VLOOKUP($B45, '3. Rate Classes'!$C$24:$H$45,6,0))), "", VLOOKUP($B45, '3. Rate Classes'!$C$24:$H$45,6,0)) ->  | L45: 0 | M45: 0
B46: =IF('3. Rate Classes'!Q43=1,'3. Rate Classes'!C43, 0) -> 0 | D46: =IF(OR(VLOOKUP($B46, '3. Rate Classes'!$C$24:$H$45,6,0)=0, ISERROR(VLOOKUP($B46, '3. Rate Classes'!$C$24:$H$45,6,0))), "", VLOOKUP($B46, '3. Rate Classes'!$C$24:$H$45,6,0)) ->  | L46: 0 | M46: 0
B47: =IF('3. Rate Classes'!Q44=1,'3. Rate Classes'!C44, 0) -> 0 | D47: =IF(OR(VLOOKUP($B47, '3. Rate Classes'!$C$24:$H$45,6,0)=0, ISERROR(VLOOKUP($B47, '3. Rate Classes'!$C$24:$H$45,6,0))), "", VLOOKUP($B47, '3. Rate Classes'!$C$24:$H$45,6,0)) ->  | L47: 0 | M47: 0
B48: =IF('3. Rate Classes'!Q45=1,'3. Rate Classes'!C45, 0) -> 0 | D48: =IF(OR(VLOOKUP($B48, '3. Rate Classes'!$C$24:$H$45,6,0)=0, ISERROR(VLOOKUP($B48, '3. Rate Classes'!$C$24:$H$45,6,0))), "", VLOOKUP($B48, '3. Rate Classes'!$C$24:$H$45,6,0)) ->  | L48: 0 | M48: 0

Sheet 5. UTRs and Sub-Transmission
B18: Uniform Transmission Rates | C18: Unit | E18: Effective January 1, 2011 | G18: Effective January 1, 2012 | I18: Effective January 1, 2013
B20: Rate Description | E20: Rate | G20: Rate | I20: Rate
B22: Network Service Rate | C22: kW | E22: 3.22 | G22: 3.57 | I22: 3.57
B24: Line Connection Service Rate | C24: kW | E24: 0.79 | G24: 0.8 | I24: 0.8
B26: Transformation Connection Service Rate | C26: kW | E26: 1.77 | G26: 1.86 | I26: 1.86
B29: Hydro One Sub-Transmission Rates | C29: Unit | E29: Effective January 1, 2011 | G29: Effective January 1, 2012 | I29: Effective January 1, 2013
B33: Rate Description | E33: Rate | G33: Rate | I33: Rate
B35: Network Service Rate | C35: kW | E35: 2.65 | G35: 2.65 | I35: 2.65
B37: Line Connection Service Rate | C37: kW | E37: 0.64 | G37: 0.64 | I37: 0.64
B39: Transformation Connection Service Rate | C39: kW | E39: 1.5 | G39: 1.5 | I39: 1.5
B41: Both Line and Transformation Connection Service Rate | C41: kW | E41: =E39+E37 -> 2.14 | G41: =G39+G37 -> 2.14 | I41: =I39+I37 -> 2.14
B45: Hydro One Sub-Transmission Rate Rider 6A | C45: Unit | E45: Effective January 1, 2011 | G45: Effective January 1, 2012 | I45: Effective January 1, 2013
B47: Rate Description | E47: Rate | G47: Rate | I47: Rate
B49: RSVA Transmission network – 4714 – which affects 1584 | C49: kW | E49: 0.047 | G49: 0 | I49: 0
B51: RSVA Transmission connection – 4716 – which affects 1586 | C51: kW | E51: -0.025 | G51: 0 | I51: 0
B53: RSVA LV – 4750 – which affects 1550 | C53: kW | E53: 0.058 | G53: 0 | I53: 0
B55: RARA 1 – 2252 – which affects 1590 | C55: kW | E55: -0.075 | G55: 0 | I55: 0
B57: Hydro One Sub-Transmission Rate Rider 6A | C57: kW | E57: =SUM(E49:E55) -> 0.005 | G57: =SUM(G49:G55) -> 0 | I57: =SUM(I49:I55) -> 0

Sheet 6. Historical Wholesale
B21: IESO | D21: Network | H21: Line Connection | L21: Transformation Connection | P21: Total Line
B22: Month | D22: Units Billed | E22: Rate | F22: Amount | H22: Units Billed | I22: Rate | J22: Amount | L22: Units Billed | M22: Rate | N22: Amount | P22: Amount
B24: January | D24: =F24/3.22 -> 205584 | E24: =IF(D24<>0,F24/D24,0) -> 3.22 | F24: 661980.48 | H24: =J24/0.79 -> 208452 | I24: =IF(H24<>0,J24/H24,0) -> 0.79 | J24: =533637.12-N24 -> 164677.08 | L24: =N24/1.77 -> 208452 | M24: =IF(L24<>0,N24/L24,0) -> 1.77 | N24: 368960.04 | P24: =J24+N24 -> 533637.12
B25: February | D25: =F25/3.22 -> 193104 | E25: 3.22 | F25: 621794.88 | H25: =J25/0.79 -> 194808 | I25: 0.79 | J25: =498708.48-N25 -> 153898.32 | L25: =N25/1.77 -> 194808 | M25: 1.77 | N25: 344810.16 | P25: 498708.48
B26: March | D26: 181590 | E26: 3.22 | F26: 584719.8 | H26: 185166 | I26: 0.79 | J26: =474024.96-N26 -> 146281.14 | L26: 185166 | M26: 1.77 | N26: 327743.82 | P26: 474024.96
B27: April | D27: 147420 | E27: 3.22 | F27: 474692.4 | H27: 180099.519 | I27: 0.79 | J27: =474312.79-N27 -> 142278.62 | L27: 187589.9266 | M27: 1.77 | N27: 332034.17 | P27: 474312.79
B28: May | D28: 167700 | E28: 3.22 | F28: 539994 | H28: 173766 | I28: 0.79 | J28: =444840.96-N28 -> 137275.14 | L28: 173766 | M28: 1.77 | N28: 307565.82 | P28: 444840.96
B29: June | D29: 197210 | E29: 3.22 | F29: 635016.2 | H29: 214063 | I29: 0.79 | J29: =548001.28-N29 -> 169109.77 | L29: 214063 | M29: 1.77 | N29: 378891.51 | P29: 548001.28
B30: July | D30: 233293 | E30: 3.22 | F30: 751203.46 | H30: 236332 | I30: 0.79 | J30: =605009.92-N30 -> 186702.28 | L30: 236332 | M30: 1.77 | N30: 418307.64 | P30: 605009.92
B31: August | D31: 199411 | E31: 3.22 | F31: 642103.42 | H31: 218847 | I31: 0.79 | J31: =560248.32-N31 -> 172889.13 | L31: 218847 | M31: 1.77 | N31: 387359.19 | P31: 560248.32
B32: September | D32: 169686 | E32: 3.22 | F32: 546388.92 | H32: 182420 | I32: 0.79 | J32: =466995.2-N32 -> 144111.8 | L32: 182420 | M32: 1.77 | N32: 322883.4 | P32: 466995.2
B33: October | D33: 157000 | E33: 3.22 | F33: 505540 | H33: 162902 | I33: 0.79 | J33: =417029.12-N33 -> 128692.58 | L33: 162902 | M33: 1.77 | N33: 288336.54 | P33: 417029.12
B34: November | D34: 171784 | E34: 3.22 | F34: 553144.48 | H34: 173560 | I34: 0.79 | J34: =444313.6-N34 -> 137112.4 | L34: 173560 | M34: 1.77 | N34: 307201.2 | P34: 444313.6
B35: December | D35: 192686 | E35: 3.22 | F35: 620448.92 | H35: 202146 | I35: 0.79 | J35: =517493.76-N35 -> 159695.34 | L35: 202146 | M35: 1.77 | N35: 357798.42 | P35: 517493.76
B37: Total | D37: =SUM(D24:D35) -> 2216468 | E37: =IF(D37<>0,F37/D37,0) -> 3.22 | F37: =SUM(F24:F35) -> 7137026.96 | H37: =SUM(H24:H35) -> 2332561.519 | I37: =IF(H37<>0,J37/H37,0) -> 0.79 | J37: =SUM(J24:J35) -> 1842723.6 | L37: =SUM(L24:L35) -> 2340051.927 | M37: =IF(L37<>0,N37/L37,0) -> 1.77 | N37: =SUM(N24:N35) -> 4141891.91 | P37: =SUM(P24:P35) -> 5984615.51
B39: Hydro One | D39: Network | H39: Line Connection | L39: Transformation Connection | P39: Total Line
B41: Month | D41: Units Billed | E41: Rate | F41: Amount | H41: Units Billed | I41: Rate | J41: Amount | L41: Units Billed | M41: Rate | N41: Amount | P41: Amount
B43: January | D43: =F43/2.65 -> 96.30188679 | E43: =IF(D43<>0,F43/D43,0) -> 2.65 | F43: 255.2 | H43: =J43/0.64 -> 107.234375 | I43: =IF(H43<>0,J43/H43,0) -> 0.64 | J43: 68.63 | L43: =N43/1.5 -> 107.2333333 | M43: =IF(L43<>0,N43/L43,0) -> 1.5 | N43: 160.85 | P43: =J43+N43 -> 229.48
B44: February | D44: =F44/2.65 -> 96.30188679 | E44: 2.65 | F44: 255.2 | H44: =J44/0.64 -> 107.234375 | I44: 0.64 | J44: 68.63 | L44: =N44/1.5 -> 107.2333333 | M44: 1.5 | N44: 160.85 | P44: 229.48
B45: March | D45: 96.30188679 | E45: 2.65 | F45: 255.2 | H45: 107.234375 | I45: 0.64 | J45: 68.63 | L45: 107.2333333 | M45: 1.5 | N45: 160.85 | P45: 229.48
B46: April | D46: 96.30188679 | E46: 2.65 | F46: 255.2 | H46: 107.234375 | I46: 0.64 | J46: 68.63 | L46: 107.2333333 | M46: 1.5 | N46: 160.85 | P46: 229.48
B47: May | D47: 98.74716981 | E47: 2.65 | F47: 261.68 | H47: 99.734375 | I47: 0.64 | J47: 63.83 | L47: 99.73333333 | M47: 1.5 | N47: 149.6 | P47: 213.43
B48: June | D48: 98.74716981 | E48: 2.65 | F48: 261.68 | H48: 99.734375 | I48: 0.64 | J48: 63.83 | L48: 99.73333333 | M48: 1.5 | N48: 149.6 | P48: 213.43
B49: July | D49: 98.74716981 | E49: 2.65 | F49: 261.68 | H49: 99.734375 | I49: 0.64 | J49: 63.83 | L49: 99.73333333 | M49: 1.5 | N49: 149.6 | P49: 213.43
B50: August | D50: 98.74716981 | E50: 2.65 | F50: 261.68 | H50: 99.734375 | I50: 0.64 | J50: 63.83 | L50: 99.73333333 | M50: 1.5 | N50: 149.6 | P50: 213.43
B51: September | D51: 98.74716981 | E51: 2.65 | F51: 261.68 | H51: 99.734375 | I51: 0.64 | J51: 63.83 | L51: 99.73333333 | M51: 1.5 | N51: 149.6 | P51: 213.43
B52: October | D52: 98.74716981 | E52: 2.65 | F52: 261.68 | H52: 99.734375 | I52: 0.64 | J52: 63.83 | L52: 99.73333333 | M52: 1.5 | N52: 149.6 | P52: 213.43
B53: November | D53: 98.74716981 | E53: 2.65 | F53: 261.68 | H53: 99.734375 | I53: 0.64 | J53: 63.83 | L53: 99.73333333 | M53: 1.5 | N53: 149.6 | P53: 213.43
B54: December | D54: 98.74716981 | E54: 2.65 | F54: 261.68 | H54: 99.734375 | I54: 0.64 | J54: 63.83 | L54: 99.73333333 | M54: 1.5 | N54: 149.6 | P54: 213.43
B56: Total | D56: =SUM(D43:D54) -> 1175.184906 | E56: =IF(D56<>0,F56/D56,0) -> 2.65 | F56: =SUM(F43:F54) -> 3114.24 | H56: =SUM(H43:H54) -> 1226.8125 | I56: =IF(H56<>0,J56/H56,0) -> 0.64 | J56: =SUM(J43:J54) -> 785.16 | L56: =SUM(L43:L54) -> 1226.8 | M56: =IF(L56<>0,N56/L56,0) -> 1.5 | N56: =SUM(N43:N54) -> 1840.2 | P56: =SUM(P43:P54) -> 2625.36
B58: Total | D58: Network | H58: Line Connection | L58: Transformation Connection | P58: Total Line
B60: Month | D60: Units Billed | E60: Rate | F60: Amount | H60: Units Billed | I60: Rate | J60: Amount | L60: Units Billed | M60: Rate | N60: Amount | P60: Amount
B62: January | D62: =D24+D43 -> 205680.3019 | E62: =IF(D62<>0,F62/D62,0) -> 3.219733119 | F62: =F24+F43 -> 662235.68 | H62: =H24+H43 -> 208559.2344 | I62: =IF(H62<>0,J62/H62,0) -> 0.7899228749 | J62: =J24+J43 -> 164745.71 | L62: =L24+L43 -> 208559.2333 | M62: =IF(L62<>0,N62/L62,0) -> 1.769861176 | N62: =N24+N43 -> 369120.89 | P62: =J62+N62 -> 533866.6
B63: February | D63: 193200.3019 | E63: 3.21971588 | F63: 622050.08 | H63: 194915.2344 | I63: 0.7899174761 | J63: 153966.95 | L63: 194915.2333 | M63: 1.769851459 | N63: 344971.01 | P63: 498937.96
B64: March | D64: 181686.3019 | E64: 3.219697874 | F64: 584975 | H64: 185273.2344 | I64: 0.7899131814 | J64: 146349.77 | L64: 185273.2333 | M64: 1.769843728 | N64: 327904.67 | P64: 474254.44
B65: April | D65: 147516.3019 | E65: 3.219627891 | F65: 474947.6 | H65: 180206.7534 | I65: 0.7899107405 | J65: 142347.25 | L65: 187697.1599 | M65: 1.769845746 | N65: 332195.02 | P65: 474542.27
B66: May | D66: 167798.7472 | E66: 3.219664563 | F66: 540255.68 | H66: 173865.7344 | I66: 0.7899139557 | J66: 137338.97 | L66: 173865.7333 | M66: 1.769845122 | N66: 307715.42 | P66: 445054.39
B67: June | D67: 197308.7472 | E67: 3.219714732 | F67: 635277.88 | H67: 214162.7344 | I67: 0.7899301458 | J67: 169173.6 | L67: 214162.7333 | M67: 1.769874264 | N67: 379041.11 | P67: 548214.71
B68: July | D68: 233391.7472 | E68: 3.219758835 | F68: 751465.14 | H68: 236431.7344 | I68: 0.7899367253 | J68: 186766.11 | L68: 236431.7333 | M68: 1.769886107 | N68: 418457.24 | P68: 605223.35
B69: August | D69: 199509.7472 | E69: 3.219717879 | F69: 642365.1 | H69: 218946.7344 | I69: 0.7899316722 | J69: 172952.96 | L69: 218946.7333 | M69: 1.769877011 | N69: 387508.79 | P69: 560461.75
B70: September | D70: 169784.7472 | E70: 3.219668487 | F70: 546650.6 | H70: 182519.7344 | I70: 0.7899180354 | J70: 144175.63 | L70: 182519.7333 | M70: 1.769852465 | N70: 323033 | P70: 467208.63
B71: October | D71: 157098.7472 | E71: 3.219641717 | F71: 505801.68 | H71: 163001.7344 | I71: 0.7899082209 | J71: 128756.41 | L71: 163001.7333 | M71: 1.769834799 | N71: 288486.14 | P71: 417242.55
B72: November | D72: 171882.7472 | E72: 3.219672533 | F72: 553406.16 | H72: 173659.7344 | I72: 0.7899138536 | J72: 137176.23 | L72: 173659.7333 | M72: 1.769844938 | N72: 307350.8 | P72: 444527.03
B73: December | D73: 192784.7472 | E73: 3.219708038 | F73: 620710.6 | H73: 202245.7344 | I73: 0.7899260298 | J73: 159759.17 | L73: 202245.7333 | M73: 1.769866855 | N73: 357948.02 | P73: 517707.19
B75: Total | D75: =SUM(D62:D73) -> 2217643.185 | E75: =IF(D75<>0,F75/D75,0) -> 3.219697943 | F75: =SUM(F62:F73) -> 7140141.2 | H75: =SUM(H62:H73) -> 2333788.331 | I75: =IF(H75<>0,J75/H75,0) -> 0.7899211489 | J75: =SUM(J62:J73) -> 1843508.76 | L75: =SUM(L62:L73) -> 2341278.727 | M75: =IF(L75<>0,N75/L75,0) -> 1.769858523 | N75: =SUM(N62:N73) -> 4143732.11 | P75: =SUM(P62:P73) -> 5987240.87

Sheet 7. Current Wholesale
B13: The purpose of this sheet is to calculate the expected billing when current 2012 Uniform Transmission Rates are applied against historical 2011 transmission units.
B20: IESO | D20: Network | H20: Line Connection | L20: Transformation Connection | P20: Total Line
B22: Month | D22: Units Billed | E22: Rate | F22: Amount | H22: Units Billed | I22: Rate | J22: Amount | L22: Units Billed | M22: Rate | N22: Amount | P22: Amount
B24: January | D24: ='6. Historical Wholesale'!D24 -> 205584 | E24: ='5. UTRs and Sub-Transmission'!G22 -> 3.57 | F24: =D24*E24 -> 733934.88 | H24: ='6. Historical Wholesale'!H24 -> 208452 | I24: ='5. UTRs and Sub-Transmission'!G24 -> 0.8 | J24: =H24*I24 -> 166761.6 | L24: ='6. Historical Wholesale'!L24 -> 208452 | M24: ='5. UTRs and Sub-Transmission'!G26 -> 1.86 | N24: =L24*M24 -> 387720.72 | P24: =J24+N24 -> 554482.32
B25: February | D25: ='6. Historical Wholesale'!D25 -> 193104 | E25: =E24 -> 3.57 | F25: =D25*E25 -> 689381.28 | H25: ='6. Historical Wholesale'!H25 -> 194808 | I25: =I24 -> 0.8 | J25: =H25*I25 -> 155846.4 | L25: ='6. Historical Wholesale'!L25 -> 194808 | M25: =M24 -> 1.86 | N25: =L25*M25 -> 362342.88 | P25: 518189.28
B26: March | D26: ='6. Historical Wholesale'!D26 -> 181590 | E26: =E25 -> 3.57 | F26: 648276.3 | H26: ='6. Historical Wholesale'!H26 -> 185166 | I26: =I25 -> 0.8 | J26: 148132.8 | L26: ='6. Historical Wholesale'!L26 -> 185166 | M26: =M25 -> 1.86 | N26: 344408.76 | P26: 492541.56
B27: April | D27: ='6. Historical Wholesale'!D27 -> 147420 | E27: 3.57 | F27: 526289.4 | H27: ='6. Historical Wholesale'!H27 -> 180099.519 | I27: 0.8 | J27: 144079.6152 | L27: ='6. Historical Wholesale'!L27 -> 187589.9266 | M27: 1.86 | N27: 348917.2634 | P27: 492996.8786
B28: May | D28: ='6. Historical Wholesale'!D28 -> 167700 | E28: 3.57 | F28: 598689 | H28: ='6. Historical Wholesale'!H28 -> 173766 | I28: 0.8 | J28: 139012.8 | L28: ='6. Historical Wholesale'!L28 -> 173766 | M28: 1.86 | N28: 323204.76 | P28: 462217.56
B29: June | D29: ='6. Historical Wholesale'!D29 -> 197210 | E29: 3.57 | F29: 704039.7 | H29: ='6. Historical Wholesale'!H29 -> 214063 | I29: 0.8 | J29: 171250.4 | L29: ='6. Historical Wholesale'!L29 -> 214063 | M29: 1.86 | N29: 398157.18 | P29: 569407.58
B30: July | D30: ='6. Historical Wholesale'!D30 -> 233293 | E30: 3.57 | F30: 832856.01 | H30: ='6. Historical Wholesale'!H30 -> 236332 | I30: 0.8 | J30: 189065.6 | L30: ='6. Historical Wholesale'!L30 -> 236332 | M30: 1.86 | N30: 439577.52 | P30: 628643.12
B31: August | D31: ='6. Historical Wholesale'!D31 -> 199411 | E31: 3.57 | F31: 711897.27 | H31: ='6. Historical Wholesale'!H31 -> 218847 | I31: 0.8 | J31: 175077.6 | L31: ='6. Historical Wholesale'!L31 -> 218847 | M31: 1.86 | N31: 407055.42 | P31: 582133.02
B32: September | D32: ='6. Historical Wholesale'!D32 -> 169686 | E32: 3.57 | F32: 605779.02 | H32: ='6. Historical Wholesale'!H32 -> 182420 | I32: 0.8 | J32: 145936 | L32: ='6. Historical Wholesale'!L32 -> 182420 | M32: 1.86 | N32: 339301.2 | P32: 485237.2
B33: October | D33: ='6. Historical Wholesale'!D33 -> 157000 | E33: 3.57 | F33: 560490 | H33: ='6. Historical Wholesale'!H33 -> 162902 | I33: 0.8 | J33: 130321.6 | L33: ='6. Historical Wholesale'!L33 -> 162902 | M33: 1.86 | N33: 302997.72 | P33: 433319.32
B34: November | D34: ='6. Historical Wholesale'!D34 -> 171784 | E34: 3.57 | F34: 613268.88 | H34: ='6. Historical Wholesale'!H34 -> 173560 | I34: 0.8 | J34: 138848 | L34: ='6. Historical Wholesale'!L34 -> 173560 | M34: 1.86 | N34: 322821.6 | P34: 461669.6
B35: December | D35: ='6. Historical Wholesale'!D35 -> 192686 | E35: 3.57 | F35: 687889.02 | H35: ='6. Historical Wholesale'!H35 -> 202146 | I35: 0.8 | J35: 161716.8 | L35: ='6. Historical Wholesale'!L35 -> 202146 | M35: 1.86 | N35: 375991.56 | P35: 537708.36
B37: Total | D37: =SUM(D24:D35) -> 2216468 | E37: =IF(D37<>0,F37/D37,0) -> 3.57 | F37: =SUM(F24:F35) -> 7912790.76 | H37: =SUM(H24:H35) -> 2332561.519 | I37: =IF(H37<>0,J37/H37,0) -> 0.8 | J37: =SUM(J24:J35) -> 1866049.215 | L37: =SUM(L24:L35) -> 2340051.927 | M37: =IF(L37<>0,N37/L37,0) -> 1.86 | N37: =SUM(N24:N35) -> 4352496.583 | P37: =SUM(P24:P35) -> 6218545.799
B39: Hydro One | D39: Network | H39: Line Connection | L39: Transformation Connection | P39: Total Line
B41: Month | D41: Units Billed | E41: Rate | F41: Amount | H41: Units Billed | I41: Rate | J41: Amount | L41: Units Billed | M41: Rate | N41: Amount | P41: Amount
B43: January | D43: ='6. Historical Wholesale'!D43 -> 96.30188679 | E43: ='5. UTRs and Sub-Transmission'!G35+'5. UTRs and Sub-Transmission'!G49 -> 2.65 | F43: =D43*E43 -> 255.2 | H43: ='6. Historical Wholesale'!H43 -> 107.234375 | I43: ='5. UTRs and Sub-Transmission'!G37+'5. UTRs and Sub-Transmission'!G51 -> 0.64 | J43: =H43*I43 -> 68.63 | L43: ='6. Historical Wholesale'!L43 -> 107.2333333 | M43: ='5. UTRs and Sub-Transmission'!G39 -> 1.5 | N43: =L43*M43 -> 160.85 | P43: =J43+N43 -> 229.48
B44: February | D44: ='6. Historical Wholesale'!D44 -> 96.30188679 | E44: =E43 -> 2.65 | F44: =D44*E44 -> 255.2 | H44: ='6. Historical Wholesale'!H44 -> 107.234375 | I44: =I43 -> 0.64 | J44: =H44*I44 -> 68.63 | L44: ='6. Historical Wholesale'!L44 -> 107.2333333 | M44: =M43 -> 1.5 | N44: =L44*M44 -> 160.85 | P44: 229.48
B45: March | D45: ='6. Historical Wholesale'!D45 -> 96.30188679 | E45: =E44 -> 2.65 | F45: 255.2 | H45: ='6. Historical Wholesale'!H45 -> 107.234375 | I45: =I44 -> 0.64 | J45: 68.63 | L45: ='6. Historical Wholesale'!L45 -> 107.2333333 | M45: =M44 -> 1.5 | N45: 160.85 | P45: 229.48
B46: April | D46: ='6. Historical Wholesale'!D46 -> 96.30188679 | E46: 2.65 | F46: 255.2 | H46: ='6. Historical Wholesale'!H46 -> 107.234375 | I46: 0.64 | J46: 68.63 | L46: ='6. Historical Wholesale'!L46 -> 107.2333333 | M46: =M45 -> 1.5 | N46: 160.85 | P46: 229.48
B47: May | D47: ='6. Historical Wholesale'!D47 -> 98.74716981 | E47: 2.65 | F47: 261.68 | H47: ='6. Historical Wholesale'!H47 -> 99.734375 | I47: 0.64 | J47: 63.83 | L47: ='6. Historical Wholesale'!L47 -> 99.73333333 | M47: 1.5 | N47: 149.6 | P47: 213.43
B48: June | D48: ='6. Historical Wholesale'!D48 -> 98.74716981 | E48: 2.65 | F48: 261.68 | H48: ='6. Historical Wholesale'!H48 -> 99.734375 | I48: 0.64 | J48: 63.83 | L48: ='6. Historical Wholesale'!L48 -> 99.73333333 | M48: 1.5 | N48: 149.6 | P48: 213.43
B49: July | D49: ='6. Historical Wholesale'!D49 -> 98.74716981 | E49: 2.65 | F49: 261.68 | H49: ='6. Historical Wholesale'!H49 -> 99.734375 | I49: 0.64 | J49: 63.83 | L49: ='6. Historical Wholesale'!L49 -> 99.73333333 | M49: 1.5 | N49: 149.6 | P49: 213.43
B50: August | D50: ='6. Historical Wholesale'!D50 -> 98.74716981 | E50: 2.65 | F50: 261.68 | H50: ='6. Historical Wholesale'!H50 -> 99.734375 | I50: 0.64 | J50: 63.83 | L50: ='6. Historical Wholesale'!L50 -> 99.73333333 | M50: 1.5 | N50: 149.6 | P50: 213.43
B51: September | D51: ='6. Historical Wholesale'!D51 -> 98.74716981 | E51: 2.65 | F51: 261.68 | H51: ='6. Historical Wholesale'!H51 -> 99.734375 | I51: 0.64 | J51: 63.83 | L51: ='6. Historical Wholesale'!L51 -> 99.73333333 | M51: 1.5 | N51: 149.6 | P51: 213.43
B52: October | D52: ='6. Historical Wholesale'!D52 -> 98.74716981 | E52: 2.65 | F52: 261.68 | H52: ='6. Historical Wholesale'!H52 -> 99.734375 | I52: 0.64 | J52: 63.83 | L52: ='6. Historical Wholesale'!L52 -> 99.73333333 | M52: 1.5 | N52: 149.6 | P52: 213.43
B53: November | D53: ='6. Historical Wholesale'!D53 -> 98.74716981 | E53: 2.65 | F53: 261.68 | H53: ='6. Historical Wholesale'!H53 -> 99.734375 | I53: 0.64 | J53: 63.83 | L53: ='6. Historical Wholesale'!L53 -> 99.73333333 | M53: 1.5 | N53: 149.6 | P53: 213.43
B54: December | D54: ='6. Historical Wholesale'!D54 -> 98.74716981 | E54: 2.65 | F54: 261.68 | H54: ='6. Historical Wholesale'!H54 -> 99.734375 | I54: 0.64 | J54: 63.83 | L54: ='6. Historical Wholesale'!L54 -> 99.73333333 | M54: 1.5 | N54: 149.6 | P54: 213.43
B56: Total | D56: =SUM(D43:D54) -> 1175.184906 | E56: =IF(D56<>0,F56/D56,0) -> 2.65 | F56: =SUM(F43:F54) -> 3114.24 | H56: =SUM(H43:H54) -> 1226.8125 | I56: =IF(H56<>0,J56/H56,0) -> 0.64 | J56: =SUM(J43:J54) -> 785.16 | L56: =SUM(L43:L54) -> 1226.8 | M56: =IF(L56<>0,N56/L56,0) -> 1.5 | N56: =SUM(N43:N54) -> 1840.2 | P56: =SUM(P43:P54) -> 2625.36
B58: Total | D58: Network | H58: Line Connection | L58: Transformation Connection | P58: Total Line
B60: Month | D60: Units Billed | E60: Rate | F60: Amount | H60: Units Billed | I60: Rate | J60: Amount | L60: Units Billed | M60: Rate | N60: Amount | P60: Amount
B62: January | D62: =D24+D43 -> 205680.3019 | E62: =IF(D62<>0,F62/D62,0) -> 3.569569245 | F62: =F24+F43 -> 734190.08 | H62: =H24+H43 -> 208559.2344 | I62: =IF(H62<>0,J62/H62,0) -> 0.7999177332 | J62: =J24+J43 -> 166830.23 | L62: =L24+L43 -> 208559.2333 | M62: =IF(L62<>0,N62/L62,0) -> 1.859814902 | N62: =N24+N43 -> 387881.57 | P62: =J62+N62 -> 554711.8
B63: February | D63: 193200.3019 | E63: 3.56954142 | F63: 689636.48 | H63: 194915.2344 | I63: 0.7999119746 | J63: 155915.03 | L63: 194915.2333 | M63: 1.859801945 | N63: 362503.73 | P63: 518418.76
B64: March | D64: 181686.3019 | E64: 3.569512359 | F64: 648531.5 | H64: 185273.2344 | I64: 0.7999073935 | J64: 148201.43 | L64: 185273.2333 | M64: 1.859791637 | N64: 344569.61 | P64: 492771.04
B65: April | D65: 147516.3019 | E65: 3.569399404 | F65: 526544.6 | H65: 180206.7534 | I65: 0.7999047899 | J65: 144148.2452 | L65: 187697.1599 | M65: 1.859794328 | N65: 349078.1134 | P65: 493226.3586
B66: May | D66: 167798.7472 | E66: 3.569458593 | F66: 598950.68 | H66: 173865.7344 | I66: 0.7999082194 | J66: 139076.63 | L66: 173865.7333 | M66: 1.859793496 | N66: 323354.36 | P66: 462430.99
B67: June | D67: 197308.7472 | E67: 3.569539567 | F67: 704301.38 | H67: 214162.7344 | I67: 0.7999254889 | J67: 171314.23 | L67: 214162.7333 | M67: 1.859832352 | N67: 398306.78 | P67: 569621.01
B68: July | D68: 233391.7472 | E68: 3.569610751 | F68: 833117.69 | H68: 236431.7344 | I68: 0.7999325069 | J68: 189129.43 | L68: 236431.7333 | M68: 1.859848142 | N68: 439727.12 | P68: 628856.55
B69: August | D69: 199509.7472 | E69: 3.569544647 | F69: 712158.95 | H69: 218946.7344 | I69: 0.799927117 | J69: 175141.43 | L69: 218946.7333 | M69: 1.859836015 | N69: 407205.02 | P69: 582346.45
B70: September | D70: 169784.7472 | E70: 3.569464926 | F70: 606040.7 | H70: 182519.7344 | I70: 0.7999125711 | J70: 145999.83 | L70: 182519.7333 | M70: 1.859803287 | N70: 339450.8 | P70: 485450.63
B71: October | D71: 157098.7472 | E71: 3.569421718 | F71: 560751.68 | H71: 163001.7344 | I71: 0.7999021023 | J71: 130385.43 | L71: 163001.7333 | M71: 1.859779732 | N71: 303147.32 | P71: 433532.75
B72: November | D72: 171882.7472 | E72: 3.569471457 | F72: 613530.56 | H72: 173659.7344 | I72: 0.7999081105 | J72: 138911.83 | L72: 173659.7333 | M72: 1.859793251 | N72: 322971.2 | P72: 461883.03
B73: December | D73: 192784.7472 | E73: 3.569528763 | F73: 688150.7 | H73: 202245.7344 | I73: 0.7999210985 | J73: 161780.63 | L73: 202245.7333 | M73: 1.859822473 | N73: 376141.16 | P73: 537921.79
B75: Total | D75: =SUM(D62:D73) -> 2217643.185 | E75: =IF(D75<>0,F75/D75,0) -> 3.569512469 | F75: =SUM(F62:F73) -> 7915905 | H75: =SUM(H62:H73) -> 2333788.331 | I75: =IF(H75<>0,J75/H75,0) -> 0.7999158921 | J75: =SUM(J62:J73) -> 1866834.375 | L75: =SUM(L62:L73) -> 2341278.727 | M75: =IF(L75<>0,N75/L75,0) -> 1.859811365 | N75: =SUM(N62:N73) -> 4354336.783 | P75: =SUM(P62:P73) -> 6221171.159

Sheet 8. Forecast Wholesale
B13: The purpose of this sheet is to calculate the expected billing when forecasted 2013 Uniform Transmission Rates are applied against historical 2011 transmission units.
B20: IESO | D20: Network | H20: Line Connection | L20: Transformation Connection | P20: Total Line
B22: Month | D22: Units Billed | E22: Rate | F22: Amount | H22: Units Billed | I22: Rate | J22: Amount | L22: Units Billed | M22: Rate | N22: Amount | P22: Amount
B24: January | D24: ='6. Historical Wholesale'!D24 -> 205584 | E24: ='5. UTRs and Sub-Transmission'!I22 -> 3.57 | F24: =D24*E24 -> 733934.88 | H24: ='6. Historical Wholesale'!H24 -> 208452 | I24: ='5. UTRs and Sub-Transmission'!I24 -> 0.8 | J24: =H24*I24 -> 166761.6 | L24: ='6. Historical Wholesale'!L24 -> 208452 | M24: ='5. UTRs and Sub-Transmission'!I26 -> 1.86 | N24: =L24*M24 -> 387720.72 | P24: =J24+N24 -> 554482.32
B25: February | D25: ='6. Historical Wholesale'!D25 -> 193104 | E25: =E24 -> 3.57 | F25: 689381.28 | H25: ='6. Historical Wholesale'!H25 -> 194808 | I25: =I24 -> 0.8 | J25: 155846.4 | L25: ='6. Historical Wholesale'!L25 -> 194808 | M25: =M24 -> 1.86 | N25: 362342.88 | P25: 518189.28
B26: March | D26: ='6. Historical Wholesale'!D26 -> 181590 | E26: 3.57 | F26: 648276.3 | H26: ='6. Historical Wholesale'!H26 -> 185166 | I26: 0.8 | J26: 148132.8 | L26: ='6. Historical Wholesale'!L26 -> 185166 | M26: 1.86 | N26: 344408.76 | P26: 492541.56
B27: April | D27: ='6. Historical Wholesale'!D27 -> 147420 | E27: 3.57 | F27: 526289.4 | H27: ='6. Historical Wholesale'!H27 -> 180099.519 | I27: 0.8 | J27: 144079.6152 | L27: ='6. Historical Wholesale'!L27 -> 187589.9266 | M27: 1.86 | N27: 348917.2634 | P27: 492996.8786
B28: May | D28: ='6. Historical Wholesale'!D28 -> 167700 | E28: 3.57 | F28: 598689 | H28: ='6. Historical Wholesale'!H28 -> 173766 | I28: 0.8 | J28: 139012.8 | L28: ='6. Historical Wholesale'!L28 -> 173766 | M28: 1.86 | N28: 323204.76 | P28: 462217.56
B29: June | D29: ='6. Historical Wholesale'!D29 -> 197210 | E29: 3.57 | F29: 704039.7 | H29: ='6. Historical Wholesale'!H29 -> 214063 | I29: 0.8 | J29: 171250.4 | L29: ='6. Historical Wholesale'!L29 -> 214063 | M29: 1.86 | N29: 398157.18 | P29: 569407.58
B30: July | D30: ='6. Historical Wholesale'!D30 -> 233293 | E30: 3.57 | F30: 832856.01 | H30: ='6. Historical Wholesale'!H30 -> 236332 | I30: 0.8 | J30: 189065.6 | L30: ='6. Historical Wholesale'!L30 -> 236332 | M30: 1.86 | N30: 439577.52 | P30: 628643.12
B31: August | D31: ='6. Historical Wholesale'!D31 -> 199411 | E31: 3.57 | F31: 711897.27 | H31: ='6. Historical Wholesale'!H31 -> 218847 | I31: 0.8 | J31: 175077.6 | L31: ='6. Historical Wholesale'!L31 -> 218847 | M31: 1.86 | N31: 407055.42 | P31: 582133.02
B32: September | D32: ='6. Historical Wholesale'!D32 -> 169686 | E32: 3.57 | F32: 605779.02 | H32: ='6. Historical Wholesale'!H32 -> 182420 | I32: 0.8 | J32: 145936 | L32: ='6. Historical Wholesale'!L32 -> 182420 | M32: 1.86 | N32: 339301.2 | P32: 485237.2
B33: October | D33: ='6. Historical Wholesale'!D33 -> 157000 | E33: 3.57 | F33: 560490 | H33: ='6. Historical Wholesale'!H33 -> 162902 | I33: 0.8 | J33: 130321.6 | L33: ='6. Historical Wholesale'!L33 -> 162902 | M33: 1.86 | N33: 302997.72 | P33: 433319.32
B34: November | D34: ='6. Historical Wholesale'!D34 -> 171784 | E34: 3.57 | F34: 613268.88 | H34: ='6. Historical Wholesale'!H34 -> 173560 | I34: 0.8 | J34: 138848 | L34: ='6. Historical Wholesale'!L34 -> 173560 | M34: 1.86 | N34: 322821.6 | P34: 461669.6
B35: December | D35: ='6. Historical Wholesale'!D35 -> 192686 | E35: 3.57 | F35: 687889.02 | H35: ='6. Historical Wholesale'!H35 -> 202146 | I35: 0.8 | J35: 161716.8 | L35: ='6. Historical Wholesale'!L35 -> 202146 | M35: 1.86 | N35: 375991.56 | P35: 537708.36
B37: Total | D37: =SUM(D24:D35) -> 2216468 | E37: =IF(D37<>0,F37/D37,0) -> 3.57 | F37: =SUM(F24:F35) -> 7912790.76 | H37: =SUM(H24:H35) -> 2332561.519 | I37: =IF(H37<>0,J37/H37,0) -> 0.8 | J37: =SUM(J24:J35) -> 1866049.215 | L37: =SUM(L24:L35) -> 2340051.927 | M37: =IF(L37<>0,N37/L37,0) -> 1.86 | N37: =SUM(N24:N35) -> 4352496.583 | P37: =SUM(P24:P35) -> 6218545.799
B39: Hydro One | D39: Network | H39: Line Connection | L39: Transformation Connection | P39: Total Line
B41: Month | D41: Units Billed | E41: Rate | F41: Amount | H41: Units Billed | I41: Rate | J41: Amount | L41: Units Billed | M41: Rate | N41: Amount | P41: Amount
B43: January | D43: ='6. Historical Wholesale'!D43 -> 96.30188679 | E43: ='5. UTRs and Sub-Transmission'!I35+'5. UTRs and Sub-Transmission'!I49 -> 2.65 | F43: =D43*E43 -> 255.2 | H43: ='6. Historical Wholesale'!H43 -> 107.234375 | I43: ='5. UTRs and Sub-Transmission'!I37+'5. UTRs and Sub-Transmission'!I51 -> 0.64 | J43: =H43*I43 -> 68.63 | L43: ='6. Historical Wholesale'!L43 -> 107.2333333 | M43: ='5. UTRs and Sub-Transmission'!I39 -> 1.5 | N43: =L43*M43 -> 160.85 | P43: =J43+N43 -> 229.48
B44: February | D44: ='6. Historical Wholesale'!D44 -> 96.30188679 | E44: =E43 -> 2.65 | F44: 255.2 | H44: ='6. Historical Wholesale'!H44 -> 107.234375 | I44: =I43 -> 0.64 | J44: 68.63 | L44: ='6. Historical Wholesale'!L44 -> 107.2333333 | M44: =M43 -> 1.5 | N44: 160.85 | P44: 229.48
B45: March | D45: ='6. Historical Wholesale'!D45 -> 96.30188679 | E45: 2.65 | F45: 255.2 | H45: ='6. Historical Wholesale'!H45 -> 107.234375 | I45: 0.64 | J45: 68.63 | L45: ='6. Historical Wholesale'!L45 -> 107.2333333 | M45: 1.5 | N45: 160.85 | P45: 229.48
B46: April | D46: ='6. Historical Wholesale'!D46 -> 96.30188679 | E46: 2.65 | F46: 255.2 | H46: ='6. Historical Wholesale'!H46 -> 107.234375 | I46: 0.64 | J46: 68.63 | L46: ='6. Historical Wholesale'!L46 -> 107.2333333 | M46: 1.5 | N46: 160.85 | P46: 229.48
B47: May | D47: ='6. Historical Wholesale'!D47 -> 98.74716981 | E47: 2.65 | F47: 261.68 | H47: ='6. Historical Wholesale'!H47 -> 99.734375 | I47: 0.64 | J47: 63.83 | L47: ='6. Historical Wholesale'!L47 -> 99.73333333 | M47: 1.5 | N47: 149.6 | P47: 213.43
B48: June | D48: ='6. Historical Wholesale'!D48 -> 98.74716981 | E48: 2.65 | F48: 261.68 | H48: ='6. Historical Wholesale'!H48 -> 99.734375 | I48: 0.64 | J48: 63.83 | L48: ='6. Historical Wholesale'!L48 -> 99.73333333 | M48: 1.5 | N48: 149.6 | P48: 213.43
B49: July | D49: ='6. Historical Wholesale'!D49 -> 98.74716981 | E49: 2.65 | F49: 261.68 | H49: ='6. Historical Wholesale'!H49 -> 99.734375 | I49: 0.64 | J49: 63.83 | L49: ='6. Historical Wholesale'!L49 -> 99.73333333 | M49: 1.5 | N49: 149.6 | P49: 213.43
B50: August | D50: ='6. Historical Wholesale'!D50 -> 98.74716981 | E50: 2.65 | F50: 261.68 | H50: ='6. Historical Wholesale'!H50 -> 99.734375 | I50: 0.64 | J50: 63.83 | L50: ='6. Historical Wholesale'!L50 -> 99.73333333 | M50: 1.5 | N50: 149.6 | P50: 213.43
B51: September | D51: ='6. Historical Wholesale'!D51 -> 98.74716981 | E51: 2.65 | F51: 261.68 | H51: ='6. Historical Wholesale'!H51 -> 99.734375 | I51: 0.64 | J51: 63.83 | L51: ='6. Historical Wholesale'!L51 -> 99.73333333 | M51: 1.5 | N51: 149.6 | P51: 213.43
B52: October | D52: ='6. Historical Wholesale'!D52 -> 98.74716981 | E52: 2.65 | F52: 261.68 | H52: ='6. Historical Wholesale'!H52 -> 99.734375 | I52: 0.64 | J52: 63.83 | L52: ='6. Historical Wholesale'!L52 -> 99.73333333 | M52: 1.5 | N52: 149.6 | P52: 213.43
B53: November | D53: ='6. Historical Wholesale'!D53 -> 98.74716981 | E53: 2.65 | F53: 261.68 | H53: ='6. Historical Wholesale'!H53 -> 99.734375 | I53: 0.64 | J53: 63.83 | L53: ='6. Historical Wholesale'!L53 -> 99.73333333 | M53: 1.5 | N53: 149.6 | P53: 213.43
B54: December | D54: ='6. Historical Wholesale'!D54 -> 98.74716981 | E54: 2.65 | F54: 261.68 | H54: ='6. Historical Wholesale'!H54 -> 99.734375 | I54: 0.64 | J54: 63.83 | L54: ='6. Historical Wholesale'!L54 -> 99.73333333 | M54: 1.5 | N54: 149.6 | P54: 213.43
B56: Total | D56: =SUM(D43:D54) -> 1175.184906 | E56: =IF(D56<>0,F56/D56,0) -> 2.65 | F56: =SUM(F43:F54) -> 3114.24 | H56: =SUM(H43:H54) -> 1226.8125 | I56: =IF(H56<>0,J56/H56,0) -> 0.64 | J56: =SUM(J43:J54) -> 785.16 | L56: =SUM(L43:L54) -> 1226.8 | M56: =IF(L56<>0,N56/L56,0) -> 1.5 | N56: =SUM(N43:N54) -> 1840.2 | P56: =SUM(P43:P54) -> 2625.36
B58: Total | D58: Network | H58: Line Connection | L58: Transformation Connection | P58: Total Line
B60: Month | D60: Units Billed | E60: Rate | F60: Amount | H60: Units Billed | I60: Rate | J60: Amount | L60: Units Billed | M60: Rate | N60: Amount | P60: Amount
B62: January | D62: =D24+D43 -> 205680.3019 | E62: =IF(D62<>0,F62/D62,0) -> 3.569569245 | F62: =F24+F43 -> 734190.08 | H62: =H24+H43 -> 208559.2344 | I62: =IF(H62<>0,J62/H62,0) -> 0.7999177332 | J62: =J24+J43 -> 166830.23 | L62: =L24+L43 -> 208559.2333 | M62: =IF(L62<>0,N62/L62,0) -> 1.859814902 | N62: =N24+N43 -> 387881.57 | P62: =J62+N62 -> 554711.8
B63: February | D63: 193200.3019 | E63: 3.56954142 | F63: 689636.48 | H63: 194915.2344 | I63: 0.7999119746 | J63: 155915.03 | L63: 194915.2333 | M63: 1.859801945 | N63: 362503.73 | P63: 518418.76
B64: March | D64: 181686.3019 | E64: 3.569512359 | F64: 648531.5 | H64: 185273.2344 | I64: 0.7999073935 | J64: 148201.43 | L64: 185273.2333 | M64: 1.859791637 | N64: 344569.61 | P64: 492771.04
B65: April | D65: 147516.3019 | E65: 3.569399404 | F65: 526544.6 | H65: 180206.7534 | I65: 0.7999047899 | J65: 144148.2452 | L65: 187697.1599 | M65: 1.859794328 | N65: 349078.1134 | P65: 493226.3586
B66: May | D66: 167798.7472 | E66: 3.569458593 | F66: 598950.68 | H66: 173865.7344 | I66: 0.7999082194 | J66: 139076.63 | L66: 173865.7333 | M66: 1.859793496 | N66: 323354.36 | P66: 462430.99
B67: June | D67: 197308.7472 | E67: 3.569539567 | F67: 704301.38 | H67: 214162.7344 | I67: 0.7999254889 | J67: 171314.23 | L67: 214162.7333 | M67: 1.859832352 | N67: 398306.78 | P67: 569621.01
B68: July | D68: 233391.7472 | E68: 3.569610751 | F68: 833117.69 | H68: 236431.7344 | I68: 0.7999325069 | J68: 189129.43 | L68: 236431.7333 | M68: 1.859848142 | N68: 439727.12 | P68: 628856.55
B69: August | D69: 199509.7472 | E69: 3.569544647 | F69: 712158.95 | H69: 218946.7344 | I69: 0.799927117 | J69: 175141.43 | L69: 218946.7333 | M69: 1.859836015 | N69: 407205.02 | P69: 582346.45
B70: September | D70: 169784.7472 | E70: 3.569464926 | F70: 606040.7 | H70: 182519.7344 | I70: 0.7999125711 | J70: 145999.83 | L70: 182519.7333 | M70: 1.859803287 | N70: 339450.8 | P70: 485450.63
B71: October | D71: 157098.7472 | E71: 3.569421718 | F71: 560751.68 | H71: 163001.7344 | I71: 0.7999021023 | J71: 130385.43 | L71: 163001.7333 | M71: 1.859779732 | N71: 303147.32 | P71: 433532.75
B72: November | D72: 171882.7472 | E72: 3.569471457 | F72: 613530.56 | H72: 173659.7344 | I72: 0.7999081105 | J72: 138911.83 | L72: 173659.7333 | M72: 1.859793251 | N72: 322971.2 | P72: 461883.03
B73: December | D73: 192784.7472 | E73: 3.569528763 | F73: 688150.7 | H73: 202245.7344 | I73: 0.7999210985 | J73: 161780.63 | L73: 202245.7333 | M73: 1.859822473 | N73: 376141.16 | P73: 537921.79
B75: Total | D75: =SUM(D62:D73) -> 2217643.185 | E75: =IF(D75<>0,F75/D75,0) -> 3.569512469 | F75: =SUM(F62:F73) -> 7915905 | H75: =SUM(H62:H73) -> 2333788.331 | I75: =IF(H75<>0,J75/H75,0) -> 0.7999158921 | J75: =SUM(J62:J73) -> 1866834.375 | L75: =SUM(L62:L73) -> 2341278.727 | M75: =IF(L75<>0,N75/L75,0) -> 1.859811365 | N75: =SUM(N62:N73) -> 4354336.783 | P75: =SUM(P62:P73) -> 6221171.159

Sheet 9. Adj Network to Current WS
B13: The purpose of this sheet is to re-align the current RTS Network Rates to recover current wholesale network costs.
B22: Rate Class | D22: Unit | F22: Current RTSR-Network | H22: Loss Adjusted Billed kWh | J22: Loss Adjusted Billed kW | L22: Billed Amount | N22: Billed Amount % | P22: Current Wholesale Billing | R22: Proposed RTSR Network
B25: =IF('3. Rate Classes'!Q24=1,'3. Rate Classes'!C24, 0) -> Residential | D25: =IF(ISERROR(VLOOKUP($B25, '3. Rate Classes'!$C$24:$H$45,6,0)), "", VLOOKUP($B25, '3. Rate Classes'!$C$24:$H$45,6,0)) -> kWh | F25: =IF(ISERROR(VLOOKUP($B25,'3. Rate Classes'!$C$24:$N$45, 8,0)), "", VLOOKUP($B25,'3. Rate Classes'!$C$24:$N$45, 8,0)) -> 0.0066 | H25: =VLOOKUP('9. Adj Network to Current WS'!$B25, '4. RRR Data'!$B$27:$M$49,11,0) -> 508218722.5 | J25: =VLOOKUP('9. Adj Network to Current WS'!$B25, '4. RRR Data'!$B$27:$M$49,12,0) -> 0 | L25: =IF(F25="", "", IF(D25="kWh", F25*H25, F25*J25)) -> 3354243.569 | N25: =IF(ISERROR(L25/$L$49), "", L25/$L$49) -> 0.4639516409 | P25: =IF(ISERROR('7. Current Wholesale'!$F$75*N25), "", '7. Current Wholesale'!$F$75*N25) -> 3672597.114 | R25: =IF(D25="","",IF(D25="kWh",IF(H25<>0,P25/H25,),IF(J25<>0,P25/J25,0))) -> 0.007226410503
B26: =IF('3. Rate Classes'!Q25=1,'3. Rate Classes'!C25, 0) -> General Service Less Than 50 kW | D26: =IF(ISERROR(VLOOKUP($B26, '3. Rate Classes'!$C$24:$H$45,6,0)), "", VLOOKUP($B26, '3. Rate Classes'!$C$24:$H$45,6,0)) -> kWh | F26: =IF(ISERROR(VLOOKUP($B26,'3. Rate Classes'!$C$24:$N$45, 8,0)), "", VLOOKUP($B26,'3. Rate Classes'!$C$24:$N$45, 8,0)) -> 0.006 | H26: =VLOOKUP('9. Adj Network to Current WS'!$B26, '4. RRR Data'!$B$27:$M$49,11,0) -> 142304267.3 | J26: =VLOOKUP('9. Adj Network to Current WS'!$B26, '4. RRR Data'!$B$27:$M$49,12,0) -> 0 | L26: =IF(F26="", "", IF(D26="kWh", F26*H26, F26*J26)) -> 853825.6036 | N26: =IF(ISERROR(L26/$L$49), "", L26/$L$49) -> 0.1180992918 | P26: =IF(ISERROR('7. Current Wholesale'!$F$75*N26), "", '7. Current Wholesale'!$F$75*N26) -> 934862.7741 | R26: =IF(D26="","",IF(D26="kWh",IF(H26<>0,P26/H26,),IF(J26<>0,P26/J26,0))) -> 0.006569464093
B27: =IF('3. Rate Classes'!Q26=1,'3. Rate Classes'!C26, 0) -> General Service 50 to 999 kW | D27: =IF(ISERROR(VLOOKUP($B27, '3. Rate Classes'!$C$24:$H$45,6,0)), "", VLOOKUP($B27, '3. Rate Classes'!$C$24:$H$45,6,0)) -> kW | F27: =IF(ISERROR(VLOOKUP($B27,'3. Rate Classes'!$C$24:$N$45, 8,0)), "", VLOOKUP($B27,'3. Rate Classes'!$C$24:$N$45, 8,0)) -> 2.1851 | H27: =VLOOKUP('9. Adj Network to Current WS'!$B27, '4. RRR Data'!$B$27:$M$49,11,0) -> 161366304 | J27: =VLOOKUP('9. Adj Network to Current WS'!$B27, '4. RRR Data'!$B$27:$M$49,12,0) -> 414036 | L27: 904710.0636 | N27: 0.1251375191 | P27: =IF(ISERROR('7. Current Wholesale'!$F$75*N27), "", '7. Current Wholesale'!$F$75*N27) -> 990576.713 | R27: 2.392489332
B28: =IF('3. Rate Classes'!Q27=1,'3. Rate Classes'!C27, 0) -> General Service 50 to 999 kW - Interval Metered | D28: =IF(ISERROR(VLOOKUP($B28, '3. Rate Classes'!$C$24:$H$45,6,0)), "", VLOOKUP($B28, '3. Rate Classes'!$C$24:$H$45,6,0)) -> kW | F28: =IF(ISERROR(VLOOKUP($B28,'3. Rate Classes'!$C$24:$N$45, 8,0)), "", VLOOKUP($B28,'3. Rate Classes'!$C$24:$N$45, 8,0)) -> 2.8007 | H28: =VLOOKUP('9. Adj Network to Current WS'!$B28, '4. RRR Data'!$B$27:$M$49,11,0) -> 198168071 | J28: =VLOOKUP('9. Adj Network to Current WS'!$B28, '4. RRR Data'!$B$27:$M$49,12,0) -> 453034 | L28: 1268812.324 | N28: 0.1754993481 | P28: =IF(ISERROR('7. Current Wholesale'!$F$75*N28), "", '7. Current Wholesale'!$F$75*N28) -> 1389236.167 | R28: 3.066516348
B29: =IF('3. Rate Classes'!Q28=1,'3. Rate Classes'!C28, 0) -> General Service 1,000 to 4,999 kW | D29: =IF(ISERROR(VLOOKUP($B29, '3. Rate Classes'!$C$24:$H$45,6,0)), "", VLOOKUP($B29, '3. Rate Classes'!$C$24:$H$45,6,0)) -> kW | F29: =IF(ISERROR(VLOOKUP($B29,'3. Rate Classes'!$C$24:$N$45, 8,0)), "", VLOOKUP($B29,'3. Rate Classes'!$C$24:$N$45, 8,0)) -> 2.8007 | H29: =VLOOKUP('9. Adj Network to Current WS'!$B29, '4. RRR Data'!$B$27:$M$49,11,0) -> 79908016 | J29: =VLOOKUP('9. Adj Network to Current WS'!$B29, '4. RRR Data'!$B$27:$M$49,12,0) -> 192700 | L29: 539694.89 | N29: 0.07464941788 | P29: =IF(ISERROR('7. Current Wholesale'!$F$75*N29), "", '7. Current Wholesale'!$F$75*N29) -> 590917.7002 | R29: 3.066516348
B30: =IF('3. Rate Classes'!Q29=1,'3. Rate Classes'!C29, 0) -> Large Use | D30: =IF(ISERROR(VLOOKUP($B30, '3. Rate Classes'!$C$24:$H$45,6,0)), "", VLOOKUP($B30, '3. Rate Classes'!$C$24:$H$45,6,0)) -> kW | F30: =IF(ISERROR(VLOOKUP($B30,'3. Rate Classes'!$C$24:$N$45, 8,0)), "", VLOOKUP($B30,'3. Rate Classes'!$C$24:$N$45, 8,0)) -> 2.9841 | H30: =VLOOKUP('9. Adj Network to Current WS'!$B30, '4. RRR Data'!$B$27:$M$49,11,0) -> 37740699 | J30: =VLOOKUP('9. Adj Network to Current WS'!$B30, '4. RRR Data'!$B$27:$M$49,12,0) -> 83704 | L30: 249781.1064 | N30: 0.03454917683 | P30: =IF(ISERROR('7. Current Wholesale'!$F$75*N30), "", '7. Current Wholesale'!$F$75*N30) -> 273488.0016 | R30: 3.267322967
B31: =IF('3. Rate Classes'!Q30=1,'3. Rate Classes'!C30, 0) -> Unmetered Scattered Load | D31: =IF(ISERROR(VLOOKUP($B31, '3. Rate Classes'!$C$24:$H$45,6,0)), "", VLOOKUP($B31, '3. Rate Classes'!$C$24:$H$45,6,0)) -> kWh | F31: =IF(ISERROR(VLOOKUP($B31,'3. Rate Classes'!$C$24:$N$45, 8,0)), "", VLOOKUP($B31,'3. Rate Classes'!$C$24:$N$45, 8,0)) -> 0.006 | H31: =VLOOKUP('9. Adj Network to Current WS'!$B31, '4. RRR Data'!$B$27:$M$49,11,0) -> 2903879.664 | J31: =VLOOKUP('9. Adj Network to Current WS'!$B31, '4. RRR Data'!$B$27:$M$49,12,0) -> 0 | L31: 17423.27798 | N31: 0.002409949738 | P31: =IF(ISERROR('7. Current Wholesale'!$F$75*N31), "", '7. Current Wholesale'!$F$75*N31) -> 19076.93318 | R31: 0.006569464093
B32: =IF('3. Rate Classes'!Q31=1,'3. Rate Classes'!C31, 0) -> Sentinel Lighting | D32: =IF(ISERROR(VLOOKUP($B32, '3. Rate Classes'!$C$24:$H$45,6,0)), "", VLOOKUP($B32, '3. Rate Classes'!$C$24:$H$45,6,0)) -> kW | F32: =IF(ISERROR(VLOOKUP($B32,'3. Rate Classes'!$C$24:$N$45, 8,0)), "", VLOOKUP($B32,'3. Rate Classes'!$C$24:$N$45, 8,0)) -> 1.5072 | H32: =VLOOKUP('9. Adj Network to Current WS'!$B32, '4. RRR Data'!$B$27:$M$49,11,0) -> 38567 | J32: =VLOOKUP('9. Adj Network to Current WS'!$B32, '4. RRR Data'!$B$27:$M$49,12,0) -> 115 | L32: 173.328 | N32: 2.397435021e-05 | P32: =IF(ISERROR('7. Current Wholesale'!$F$75*N32), "", '7. Current Wholesale'!$F$75*N32) -> 189.7786787 | R32: 1.65024938
B33: =IF('3. Rate Classes'!Q32=1,'3. Rate Classes'!C32, 0) -> Street Lighting | D33: =IF(ISERROR(VLOOKUP($B33, '3. Rate Classes'!$C$24:$H$45,6,0)), "", VLOOKUP($B33, '3. Rate Classes'!$C$24:$H$45,6,0)) -> kW | F33: =IF(ISERROR(VLOOKUP($B33,'3. Rate Classes'!$C$24:$N$45, 8,0)), "", VLOOKUP($B33,'3. Rate Classes'!$C$24:$N$45, 8,0)) -> 1.4816 | H33: =VLOOKUP('9. Adj Network to Current WS'!$B33, '4. RRR Data'!$B$27:$M$49,11,0) -> 10214450 | J33: =VLOOKUP('9. Adj Network to Current WS'!$B33, '4. RRR Data'!$B$27:$M$49,12,0) -> 27715 | L33: 41062.544 | N33: 0.005679681359 | P33: =IF(ISERROR('7. Current Wholesale'!$F$75*N33), "", '7. Current Wholesale'!$F$75*N33) -> 44959.81807 | R33: 1.622219667
B34: =IF('3. Rate Classes'!Q33=1,'3. Rate Classes'!C33, 0) -> 0 | D34: =IF(ISERROR(VLOOKUP($B34, '3. Rate Classes'!$C$24:$H$45,6,0)), "", VLOOKUP($B34, '3. Rate Classes'!$C$24:$H$45,6,0)) ->  | F34: =IF(ISERROR(VLOOKUP($B34,'3. Rate Classes'!$C$24:$N$45, 8,0)), "", VLOOKUP($B34,'3. Rate Classes'!$C$24:$N$45, 8,0)) ->  | H34: =VLOOKUP('9. Adj Network to Current WS'!$B34, '4. RRR Data'!$B$27:$M$49,11,0) -> 0 | J34: =VLOOKUP('9. Adj Network to Current WS'!$B34, '4. RRR Data'!$B$27:$M$49,12,0) -> 0 | P34: =IF(ISERROR('7. Current Wholesale'!$F$75*N34), "", '7. Current Wholesale'!$F$75*N34) -> 
B35: =IF('3. Rate Classes'!Q34=1,'3. Rate Classes'!C34, 0) -> 0 | D35: =IF(ISERROR(VLOOKUP($B35, '3. Rate Classes'!$C$24:$H$45,6,0)), "", VLOOKUP($B35, '3. Rate Classes'!$C$24:$H$45,6,0)) ->  | F35: =IF(ISERROR(VLOOKUP($B35,'3. Rate Classes'!$C$24:$N$45, 8,0)), "", VLOOKUP($B35,'3. Rate Classes'!$C$24:$N$45, 8,0)) ->  | H35: =VLOOKUP('9. Adj Network to Current WS'!$B35, '4. RRR Data'!$B$27:$M$49,11,0) -> 0 | J35: =VLOOKUP('9. Adj Network to Current WS'!$B35, '4. RRR Data'!$B$27:$M$49,12,0) -> 0 | P35: =IF(ISERROR('7. Current Wholesale'!$F$75*N35), "", '7. Current Wholesale'!$F$75*N35) -> 
B36: =IF('3. Rate Classes'!Q35=1,'3. Rate Classes'!C35, 0) -> 0 | D36: =IF(ISERROR(VLOOKUP($B36, '3. Rate Classes'!$C$24:$H$45,6,0)), "", VLOOKUP($B36, '3. Rate Classes'!$C$24:$H$45,6,0)) ->  | F36: =IF(ISERROR(VLOOKUP($B36,'3. Rate Classes'!$C$24:$N$45, 8,0)), "", VLOOKUP($B36,'3. Rate Classes'!$C$24:$N$45, 8,0)) ->  | H36: =VLOOKUP('9. Adj Network to Current WS'!$B36, '4. RRR Data'!$B$27:$M$49,11,0) -> 0 | J36: =VLOOKUP('9. Adj Network to Current WS'!$B36, '4. RRR Data'!$B$27:$M$49,12,0) -> 0 | P36: =IF(ISERROR('7. Current Wholesale'!$F$75*N36), "", '7. Current Wholesale'!$F$75*N36) -> 
B37: =IF('3. Rate Classes'!Q36=1,'3. Rate Classes'!C36, 0) -> 0 | D37: =IF(ISERROR(VLOOKUP($B37, '3. Rate Classes'!$C$24:$H$45,6,0)), "", VLOOKUP($B37, '3. Rate Classes'!$C$24:$H$45,6,0)) ->  | F37: =IF(ISERROR(VLOOKUP($B37,'3. Rate Classes'!$C$24:$N$45, 8,0)), "", VLOOKUP($B37,'3. Rate Classes'!$C$24:$N$45, 8,0)) ->  | H37: =VLOOKUP('9. Adj Network to Current WS'!$B37, '4. RRR Data'!$B$27:$M$49,11,0) -> 0 | J37: =VLOOKUP('9. Adj Network to Current WS'!$B37, '4. RRR Data'!$B$27:$M$49,12,0) -> 0 | P37: =IF(ISERROR('7. Current Wholesale'!$F$75*N37), "", '7. Current Wholesale'!$F$75*N37) -> 
B38: =IF('3. Rate Classes'!Q37=1,'3. Rate Classes'!C37, 0) -> 0 | D38: =IF(ISERROR(VLOOKUP($B38, '3. Rate Classes'!$C$24:$H$45,6,0)), "", VLOOKUP($B38, '3. Rate Classes'!$C$24:$H$45,6,0)) ->  | F38: =IF(ISERROR(VLOOKUP($B38,'3. Rate Classes'!$C$24:$N$45, 8,0)), "", VLOOKUP($B38,'3. Rate Classes'!$C$24:$N$45, 8,0)) ->  | H38: =VLOOKUP('9. Adj Network to Current WS'!$B38, '4. RRR Data'!$B$27:$M$49,11,0) -> 0 | J38: =VLOOKUP('9. Adj Network to Current WS'!$B38, '4. RRR Data'!$B$27:$M$49,12,0) -> 0 | P38: =IF(ISERROR('7. Current Wholesale'!$F$75*N38), "", '7. Current Wholesale'!$F$75*N38) -> 
B39: =IF('3. Rate Classes'!Q38=1,'3. Rate Classes'!C38, 0) -> 0 | D39: =IF(ISERROR(VLOOKUP($B39, '3. Rate Classes'!$C$24:$H$45,6,0)), "", VLOOKUP($B39, '3. Rate Classes'!$C$24:$H$45,6,0)) ->  | F39: =IF(ISERROR(VLOOKUP($B39,'3. Rate Classes'!$C$24:$N$45, 8,0)), "", VLOOKUP($B39,'3. Rate Classes'!$C$24:$N$45, 8,0)) ->  | H39: =VLOOKUP('9. Adj Network to Current WS'!$B39, '4. RRR Data'!$B$27:$M$49,11,0) -> 0 | J39: =VLOOKUP('9. Adj Network to Current WS'!$B39, '4. RRR Data'!$B$27:$M$49,12,0) -> 0 | L39: =IF(F39="", "", IF(D39="kWh", F39*H39, F39*J39)) ->  | P39: =IF(ISERROR('7. Current Wholesale'!$F$75*N39), "", '7. Current Wholesale'!$F$75*N39) -> 
B40: =IF('3. Rate Classes'!Q39=1,'3. Rate Classes'!C39, 0) -> 0 | D40: =IF(ISERROR(VLOOKUP($B40, '3. Rate Classes'!$C$24:$H$45,6,0)), "", VLOOKUP($B40, '3. Rate Classes'!$C$24:$H$45,6,0)) ->  | F40: =IF(ISERROR(VLOOKUP($B40,'3. Rate Classes'!$C$24:$N$45, 8,0)), "", VLOOKUP($B40,'3. Rate Classes'!$C$24:$N$45, 8,0)) ->  | H40: =VLOOKUP('9. Adj Network to Current WS'!$B40, '4. RRR Data'!$B$27:$M$49,11,0) -> 0 | J40: =VLOOKUP('9. Adj Network to Current WS'!$B40, '4. RRR Data'!$B$27:$M$49,12,0) -> 0 | P40: =IF(ISERROR('7. Current Wholesale'!$F$75*N40), "", '7. Current Wholesale'!$F$75*N40) -> 
B41: =IF('3. Rate Classes'!Q40=1,'3. Rate Classes'!C40, 0) -> 0 | D41: =IF(ISERROR(VLOOKUP($B41, '3. Rate Classes'!$C$24:$H$45,6,0)), "", VLOOKUP($B41, '3. Rate Classes'!$C$24:$H$45,6,0)) ->  | F41: =IF(ISERROR(VLOOKUP($B41,'3. Rate Classes'!$C$24:$N$45, 8,0)), "", VLOOKUP($B41,'3. Rate Classes'!$C$24:$N$45, 8,0)) ->  | H41: =VLOOKUP('9. Adj Network to Current WS'!$B41, '4. RRR Data'!$B$27:$M$49,11,0) -> 0 | J41: =VLOOKUP('9. Adj Network to Current WS'!$B41, '4. RRR Data'!$B$27:$M$49,12,0) -> 0 | P41: =IF(ISERROR('7. Current Wholesale'!$F$75*N41), "", '7. Current Wholesale'!$F$75*N41) -> 
B42: =IF('3. Rate Classes'!Q41=1,'3. Rate Classes'!C41, 0) -> 0 | D42: =IF(ISERROR(VLOOKUP($B42, '3. Rate Classes'!$C$24:$H$45,6,0)), "", VLOOKUP($B42, '3. Rate Classes'!$C$24:$H$45,6,0)) ->  | F42: =IF(ISERROR(VLOOKUP($B42,'3. Rate Classes'!$C$24:$N$45, 8,0)), "", VLOOKUP($B42,'3. Rate Classes'!$C$24:$N$45, 8,0)) ->  | H42: =VLOOKUP('9. Adj Network to Current WS'!$B42, '4. RRR Data'!$B$27:$M$49,11,0) -> 0 | J42: =VLOOKUP('9. Adj Network to Current WS'!$B42, '4. RRR Data'!$B$27:$M$49,12,0) -> 0 | P42: =IF(ISERROR('7. Current Wholesale'!$F$75*N42), "", '7. Current Wholesale'!$F$75*N42) -> 
B43: =IF('3. Rate Classes'!Q42=1,'3. Rate Classes'!C42, 0) -> 0 | D43: =IF(ISERROR(VLOOKUP($B43, '3. Rate Classes'!$C$24:$H$45,6,0)), "", VLOOKUP($B43, '3. Rate Classes'!$C$24:$H$45,6,0)) ->  | F43: =IF(ISERROR(VLOOKUP($B43,'3. Rate Classes'!$C$24:$N$45, 8,0)), "", VLOOKUP($B43,'3. Rate Classes'!$C$24:$N$45, 8,0)) ->  | H43: =VLOOKUP('9. Adj Network to Current WS'!$B43, '4. RRR Data'!$B$27:$M$49,11,0) -> 0 | J43: =VLOOKUP('9. Adj Network to Current WS'!$B43, '4. RRR Data'!$B$27:$M$49,12,0) -> 0 | P43: =IF(ISERROR('7. Current Wholesale'!$F$75*N43), "", '7. Current Wholesale'!$F$75*N43) -> 
B44: =IF('3. Rate Classes'!Q43=1,'3. Rate Classes'!C43, 0) -> 0 | D44: =IF(ISERROR(VLOOKUP($B44, '3. Rate Classes'!$C$24:$H$45,6,0)), "", VLOOKUP($B44, '3. Rate Classes'!$C$24:$H$45,6,0)) ->  | F44: =IF(ISERROR(VLOOKUP($B44,'3. Rate Classes'!$C$24:$N$45, 8,0)), "", VLOOKUP($B44,'3. Rate Classes'!$C$24:$N$45, 8,0)) ->  | H44: =VLOOKUP('9. Adj Network to Current WS'!$B44, '4. RRR Data'!$B$27:$M$49,11,0) -> 0 | J44: =VLOOKUP('9. Adj Network to Current WS'!$B44, '4. RRR Data'!$B$27:$M$49,12,0) -> 0 | P44: =IF(ISERROR('7. Current Wholesale'!$F$75*N44), "", '7. Current Wholesale'!$F$75*N44) -> 
B45: =IF('3. Rate Classes'!Q44=1,'3. Rate Classes'!C44, 0) -> 0 | D45: =IF(ISERROR(VLOOKUP($B45, '3. Rate Classes'!$C$24:$H$45,6,0)), "", VLOOKUP($B45, '3. Rate Classes'!$C$24:$H$45,6,0)) ->  | F45: =IF(ISERROR(VLOOKUP($B45,'3. Rate Classes'!$C$24:$N$45, 8,0)), "", VLOOKUP($B45,'3. Rate Classes'!$C$24:$N$45, 8,0)) ->  | H45: =VLOOKUP('9. Adj Network to Current WS'!$B45, '4. RRR Data'!$B$27:$M$49,11,0) -> 0 | J45: =VLOOKUP('9. Adj Network to Current WS'!$B45, '4. RRR Data'!$B$27:$M$49,12,0) -> 0 | P45: =IF(ISERROR('7. Current Wholesale'!$F$75*N45), "", '7. Current Wholesale'!$F$75*N45) -> 
B46: =IF('3. Rate Classes'!Q45=1,'3. Rate Classes'!C45, 0) -> 0 | D46: =IF(ISERROR(VLOOKUP($B46, '3. Rate Classes'!$C$24:$H$45,6,0)), "", VLOOKUP($B46, '3. Rate Classes'!$C$24:$H$45,6,0)) ->  | F46: =IF(ISERROR(VLOOKUP($B46,'3. Rate Classes'!$C$24:$N$45, 8,0)), "", VLOOKUP($B46,'3. Rate Classes'!$C$24:$N$45, 8,0)) ->  | H46: =VLOOKUP('9. Adj Network to Current WS'!$B46, '4. RRR Data'!$B$27:$M$49,11,0) -> 0 | J46: =VLOOKUP('9. Adj Network to Current WS'!$B46, '4. RRR Data'!$B$27:$M$49,12,0) -> 0 | P46: =IF(ISERROR('7. Current Wholesale'!$F$75*N46), "", '7. Current Wholesale'!$F$75*N46) -> 
L49: =SUM(L25:L46) -> 7229726.706

Sheet 10. Adj Conn. to Current WS
B13: The purpose of this sheet is to re-align the current RTS Connection Rates to recover current wholesale connection costs.
B22: Rate Class | D22: Unit | F22: Current RTSR-Connection | H22: Loss Adjusted Billed kWh | J22: Loss Adjusted Billed kW | L22: Billed Amount | N22: Billed Amount % | P22: Current Wholesale Billing | R22: Proposed RTSR Connection
B25: =IF('3. Rate Classes'!Q24=1,'3. Rate Classes'!C24, 0) -> Residential | D25: =IF(ISERROR(VLOOKUP($B25, '3. Rate Classes'!$C$24:$H$45,6,0)), "", VLOOKUP($B25, '3. Rate Classes'!$C$24:$H$45,6,0)) -> kWh | F25: =IF(ISERROR(VLOOKUP($B25,'3. Rate Classes'!$C$24:$N$45, 11,0)), "", VLOOKUP($B25,'3. Rate Classes'!$C$24:$N$45, 11,0)) -> 0.0056 | H25: =VLOOKUP('9. Adj Network to Current WS'!$B25, '4. RRR Data'!$B$27:$M$49,11,0) -> 508218722.5 | J25: =VLOOKUP('9. Adj Network to Current WS'!$B25, '4. RRR Data'!$B$27:$M$49,12,0) -> 0 | L25: =IF(F25="", "", IF(D25="kWh", F25*H25, F25*J25)) -> 2846024.846 | N25: =IF(ISERROR(L25/$L$49), "", L25/$L$49) -> 0.4645665031 | P25: =IF(ISERROR('7. Current Wholesale'!$P$75*N25), "", '7. Current Wholesale'!$P$75*N25) -> 2890147.73 | R25: =IF(D25="","",IF(D25="kWh",IF(H25<>0,P25/H25,),IF(J25<>0,P25/J25,0))) -> 0.005686818691
B26: =IF('3. Rate Classes'!Q25=1,'3. Rate Classes'!C25, 0) -> General Service Less Than 50 kW | D26: =IF(ISERROR(VLOOKUP($B26, '3. Rate Classes'!$C$24:$H$45,6,0)), "", VLOOKUP($B26, '3. Rate Classes'!$C$24:$H$45,6,0)) -> kWh | F26: =IF(ISERROR(VLOOKUP($B26,'3. Rate Classes'!$C$24:$N$45, 11,0)), "", VLOOKUP($B26,'3. Rate Classes'!$C$24:$N$45, 11,0)) -> 0.0051 | H26: =VLOOKUP('9. Adj Network to Current WS'!$B26, '4. RRR Data'!$B$27:$M$49,11,0) -> 142304267.3 | J26: =VLOOKUP('9. Adj Network to Current WS'!$B26, '4. RRR Data'!$B$27:$M$49,12,0) -> 0 | L26: 725751.763 | N26: 0.1184669765 | P26: =IF(ISERROR('7. Current Wholesale'!$P$75*N26), "", '7. Current Wholesale'!$P$75*N26) -> 737003.3376 | R26: 0.005179067022
B27: =IF('3. Rate Classes'!Q26=1,'3. Rate Classes'!C26, 0) -> General Service 50 to 999 kW | D27: =IF(ISERROR(VLOOKUP($B27, '3. Rate Classes'!$C$24:$H$45,6,0)), "", VLOOKUP($B27, '3. Rate Classes'!$C$24:$H$45,6,0)) -> kW | F27: =IF(ISERROR(VLOOKUP($B27,'3. Rate Classes'!$C$24:$N$45, 11,0)), "", VLOOKUP($B27,'3. Rate Classes'!$C$24:$N$45, 11,0)) -> 1.837 | H27: =VLOOKUP('9. Adj Network to Current WS'!$B27, '4. RRR Data'!$B$27:$M$49,11,0) -> 161366304 | J27: =VLOOKUP('9. Adj Network to Current WS'!$B27, '4. RRR Data'!$B$27:$M$49,12,0) -> 414036 | L27: 760584.132 | N27: 0.1241527849 | P27: =IF(ISERROR('7. Current Wholesale'!$P$75*N27), "", '7. Current Wholesale'!$P$75*N27) -> 772375.7246 | R27: 1.865479631
B28: =IF('3. Rate Classes'!Q27=1,'3. Rate Classes'!C27, 0) -> General Service 50 to 999 kW - Interval Metered | D28: =IF(ISERROR(VLOOKUP($B28, '3. Rate Classes'!$C$24:$H$45,6,0)), "", VLOOKUP($B28, '3. Rate Classes'!$C$24:$H$45,6,0)) -> kW | F28: =IF(ISERROR(VLOOKUP($B28,'3. Rate Classes'!$C$24:$N$45, 11,0)), "", VLOOKUP($B28,'3. Rate Classes'!$C$24:$N$45, 11,0)) -> 2.3336 | H28: =VLOOKUP('9. Adj Network to Current WS'!$B28, '4. RRR Data'!$B$27:$M$49,11,0) -> 198168071 | J28: =VLOOKUP('9. Adj Network to Current WS'!$B28, '4. RRR Data'!$B$27:$M$49,12,0) -> 453034 | L28: 1057200.142 | N28: 0.1725704447 | P28: =IF(ISERROR('7. Current Wholesale'!$P$75*N28), "", '7. Current Wholesale'!$P$75*N28) -> 1073590.273 | R28: 2.369778589
B29: =IF('3. Rate Classes'!Q28=1,'3. Rate Classes'!C28, 0) -> General Service 1,000 to 4,999 kW | D29: =IF(ISERROR(VLOOKUP($B29, '3. Rate Classes'!$C$24:$H$45,6,0)), "", VLOOKUP($B29, '3. Rate Classes'!$C$24:$H$45,6,0)) -> kW | F29: =IF(ISERROR(VLOOKUP($B29,'3. Rate Classes'!$C$24:$N$45, 11,0)), "", VLOOKUP($B29,'3. Rate Classes'!$C$24:$N$45, 11,0)) -> 2.3336 | H29: =VLOOKUP('9. Adj Network to Current WS'!$B29, '4. RRR Data'!$B$27:$M$49,11,0) -> 79908016 | J29: =VLOOKUP('9. Adj Network to Current WS'!$B29, '4. RRR Data'!$B$27:$M$49,12,0) -> 192700 | L29: 449684.72 | N29: 0.07340359595 | P29: =IF(ISERROR('7. Current Wholesale'!$P$75*N29), "", '7. Current Wholesale'!$P$75*N29) -> 456656.334 | R29: 2.369778589
B30: =IF('3. Rate Classes'!Q29=1,'3. Rate Classes'!C29, 0) -> Large Use | D30: =IF(ISERROR(VLOOKUP($B30, '3. Rate Classes'!$C$24:$H$45,6,0)), "", VLOOKUP($B30, '3. Rate Classes'!$C$24:$H$45,6,0)) -> kW | F30: =IF(ISERROR(VLOOKUP($B30,'3. Rate Classes'!$C$24:$N$45, 11,0)), "", VLOOKUP($B30,'3. Rate Classes'!$C$24:$N$45, 11,0)) -> 2.5463 | H30: =VLOOKUP('9. Adj Network to Current WS'!$B30, '4. RRR Data'!$B$27:$M$49,11,0) -> 37740699 | J30: =VLOOKUP('9. Adj Network to Current WS'!$B30, '4. RRR Data'!$B$27:$M$49,12,0) -> 83704 | L30: 213135.4952 | N30: 0.03479084584 | P30: =IF(ISERROR('7. Current Wholesale'!$P$75*N30), "", '7. Current Wholesale'!$P$75*N30) -> 216439.8067 | R30: 2.585776149
B31: =IF('3. Rate Classes'!Q30=1,'3. Rate Classes'!C30, 0) -> Unmetered Scattered Load | D31: =IF(ISERROR(VLOOKUP($B31, '3. Rate Classes'!$C$24:$H$45,6,0)), "", VLOOKUP($B31, '3. Rate Classes'!$C$24:$H$45,6,0)) -> kWh | F31: =IF(ISERROR(VLOOKUP($B31,'3. Rate Classes'!$C$24:$N$45, 11,0)), "", VLOOKUP($B31,'3. Rate Classes'!$C$24:$N$45, 11,0)) -> 0.0051 | H31: =VLOOKUP('9. Adj Network to Current WS'!$B31, '4. RRR Data'!$B$27:$M$49,11,0) -> 2903879.664 | J31: =VLOOKUP('9. Adj Network to Current WS'!$B31, '4. RRR Data'!$B$27:$M$49,12,0) -> 0 | L31: 14809.78628 | N31: 0.002417452762 | P31: =IF(ISERROR('7. Current Wholesale'!$P$75*N31), "", '7. Current Wholesale'!$P$75*N31) -> 15039.3874 | R31: 0.005179067022
B32: =IF('3. Rate Classes'!Q31=1,'3. Rate Classes'!C31, 0) -> Sentinel Lighting | D32: =IF(ISERROR(VLOOKUP($B32, '3. Rate Classes'!$C$24:$H$45,6,0)), "", VLOOKUP($B32, '3. Rate Classes'!$C$24:$H$45,6,0)) -> kW | F32: =IF(ISERROR(VLOOKUP($B32,'3. Rate Classes'!$C$24:$N$45, 11,0)), "", VLOOKUP($B32,'3. Rate Classes'!$C$24:$N$45, 11,0)) -> 2.1566 | H32: =VLOOKUP('9. Adj Network to Current WS'!$B32, '4. RRR Data'!$B$27:$M$49,11,0) -> 38567 | J32: =VLOOKUP('9. Adj Network to Current WS'!$B32, '4. RRR Data'!$B$27:$M$49,12,0) -> 115 | L32: 248.009 | N32: 4.048336894e-05 | P32: =IF(ISERROR('7. Current Wholesale'!$P$75*N32), "", '7. Current Wholesale'!$P$75*N32) -> 251.8539673 | R32: 2.190034498
B33: =IF('3. Rate Classes'!Q32=1,'3. Rate Classes'!C32, 0) -> Street Lighting | D33: =IF(ISERROR(VLOOKUP($B33, '3. Rate Classes'!$C$24:$H$45,6,0)), "", VLOOKUP($B33, '3. Rate Classes'!$C$24:$H$45,6,0)) -> kW | F33: =IF(ISERROR(VLOOKUP($B33,'3. Rate Classes'!$C$24:$N$45, 11,0)), "", VLOOKUP($B33,'3. Rate Classes'!$C$24:$N$45, 11,0)) -> 2.12 | H33: =VLOOKUP('9. Adj Network to Current WS'!$B33, '4. RRR Data'!$B$27:$M$49,11,0) -> 10214450 | J33: =VLOOKUP('9. Adj Network to Current WS'!$B33, '4. RRR Data'!$B$27:$M$49,12,0) -> 27715 | L33: 58755.8 | N33: 0.009590912946 | P33: =IF(ISERROR('7. Current Wholesale'!$P$75*N33), "", '7. Current Wholesale'!$P$75*N33) -> 59666.711 | R33: 2.152867076
B34: =IF('3. Rate Classes'!Q33=1,'3. Rate Classes'!C33, 0) -> 0 | D34: =IF(ISERROR(VLOOKUP($B34, '3. Rate Classes'!$C$24:$H$45,6,0)), "", VLOOKUP($B34, '3. Rate Classes'!$C$24:$H$45,6,0)) ->  | F34: =IF(ISERROR(VLOOKUP($B34,'3. Rate Classes'!$C$24:$N$45, 11,0)), "", VLOOKUP($B34,'3. Rate Classes'!$C$24:$N$45, 11,0)) ->  | H34: =VLOOKUP('9. Adj Network to Current WS'!$B34, '4. RRR Data'!$B$27:$M$49,11,0) -> 0 | J34: =VLOOKUP('9. Adj Network to Current WS'!$B34, '4. RRR Data'!$B$27:$M$49,12,0) -> 0 | P34: =IF(ISERROR('7. Current Wholesale'!$P$75*N34), "", '7. Current Wholesale'!$P$75*N34) -> 
B35: =IF('3. Rate Classes'!Q34=1,'3. Rate Classes'!C34, 0) -> 0 | D35: =IF(ISERROR(VLOOKUP($B35, '3. Rate Classes'!$C$24:$H$45,6,0)), "", VLOOKUP($B35, '3. Rate Classes'!$C$24:$H$45,6,0)) ->  | F35: =IF(ISERROR(VLOOKUP($B35,'3. Rate Classes'!$C$24:$N$45, 11,0)), "", VLOOKUP($B35,'3. Rate Classes'!$C$24:$N$45, 11,0)) ->  | H35: =VLOOKUP('9. Adj Network to Current WS'!$B35, '4. RRR Data'!$B$27:$M$49,11,0) -> 0 | J35: =VLOOKUP('9. Adj Network to Current WS'!$B35, '4. RRR Data'!$B$27:$M$49,12,0) -> 0 | P35: =IF(ISERROR('7. Current Wholesale'!$P$75*N35), "", '7. Current Wholesale'!$P$75*N35) -> 
B36: =IF('3. Rate Classes'!Q35=1,'3. Rate Classes'!C35, 0) -> 0 | D36: =IF(ISERROR(VLOOKUP($B36, '3. Rate Classes'!$C$24:$H$45,6,0)), "", VLOOKUP($B36, '3. Rate Classes'!$C$24:$H$45,6,0)) ->  | F36: =IF(ISERROR(VLOOKUP($B36,'3. Rate Classes'!$C$24:$N$45, 11,0)), "", VLOOKUP($B36,'3. Rate Classes'!$C$24:$N$45, 11,0)) ->  | H36: =VLOOKUP('9. Adj Network to Current WS'!$B36, '4. RRR Data'!$B$27:$M$49,11,0) -> 0 | J36: =VLOOKUP('9. Adj Network to Current WS'!$B36, '4. RRR Data'!$B$27:$M$49,12,0) -> 0 | P36: =IF(ISERROR('7. Current Wholesale'!$P$75*N36), "", '7. Current Wholesale'!$P$75*N36) -> 
B37: =IF('3. Rate Classes'!Q36=1,'3. Rate Classes'!C36, 0) -> 0 | D37: =IF(ISERROR(VLOOKUP($B37, '3. Rate Classes'!$C$24:$H$45,6,0)), "", VLOOKUP($B37, '3. Rate Classes'!$C$24:$H$45,6,0)) ->  | F37: =IF(ISERROR(VLOOKUP($B37,'3. Rate Classes'!$C$24:$N$45, 11,0)), "", VLOOKUP($B37,'3. Rate Classes'!$C$24:$N$45, 11,0)) ->  | H37: =VLOOKUP('9. Adj Network to Current WS'!$B37, '4. RRR Data'!$B$27:$M$49,11,0) -> 0 | J37: =VLOOKUP('9. Adj Network to Current WS'!$B37, '4. RRR Data'!$B$27:$M$49,12,0) -> 0 | P37: =IF(ISERROR('7. Current Wholesale'!$P$75*N37), "", '7. Current Wholesale'!$P$75*N37) -> 
B38: =IF('3. Rate Classes'!Q37=1,'3. Rate Classes'!C37, 0) -> 0 | D38: =IF(ISERROR(VLOOKUP($B38, '3. Rate Classes'!$C$24:$H$45,6,0)), "", VLOOKUP($B38, '3. Rate Classes'!$C$24:$H$45,6,0)) ->  | F38: =IF(ISERROR(VLOOKUP($B38,'3. Rate Classes'!$C$24:$N$45, 11,0)), "", VLOOKUP($B38,'3. Rate Classes'!$C$24:$N$45, 11,0)) ->  | H38: =VLOOKUP('9. Adj Network to Current WS'!$B38, '4. RRR Data'!$B$27:$M$49,11,0) -> 0 | J38: =VLOOKUP('9. Adj Network to Current WS'!$B38, '4. RRR Data'!$B$27:$M$49,12,0) -> 0 | P38: =IF(ISERROR('7. Current Wholesale'!$P$75*N38), "", '7. Current Wholesale'!$P$75*N38) -> 
B39: =IF('3. Rate Classes'!Q38=1,'3. Rate Classes'!C38, 0) -> 0 | D39: =IF(ISERROR(VLOOKUP($B39, '3. Rate Classes'!$C$24:$H$45,6,0)), "", VLOOKUP($B39, '3. Rate Classes'!$C$24:$H$45,6,0)) ->  | F39: =IF(ISERROR(VLOOKUP($B39,'3. Rate Classes'!$C$24:$N$45, 11,0)), "", VLOOKUP($B39,'3. Rate Classes'!$C$24:$N$45, 11,0)) ->  | H39: =VLOOKUP('9. Adj Network to Current WS'!$B39, '4. RRR Data'!$B$27:$M$49,11,0) -> 0 | J39: =VLOOKUP('9. Adj Network to Current WS'!$B39, '4. RRR Data'!$B$27:$M$49,12,0) -> 0 | P39: =IF(ISERROR('7. Current Wholesale'!$P$75*N39), "", '7. Current Wholesale'!$P$75*N39) -> 
B40: =IF('3. Rate Classes'!Q39=1,'3. Rate Classes'!C39, 0) -> 0 | D40: =IF(ISERROR(VLOOKUP($B40, '3. Rate Classes'!$C$24:$H$45,6,0)), "", VLOOKUP($B40, '3. Rate Classes'!$C$24:$H$45,6,0)) ->  | F40: =IF(ISERROR(VLOOKUP($B40,'3. Rate Classes'!$C$24:$N$45, 11,0)), "", VLOOKUP($B40,'3. Rate Classes'!$C$24:$N$45, 11,0)) ->  | H40: =VLOOKUP('9. Adj Network to Current WS'!$B40, '4. RRR Data'!$B$27:$M$49,11,0) -> 0 | J40: =VLOOKUP('9. Adj Network to Current WS'!$B40, '4. RRR Data'!$B$27:$M$49,12,0) -> 0 | P40: =IF(ISERROR('7. Current Wholesale'!$P$75*N40), "", '7. Current Wholesale'!$P$75*N40) -> 
B41: =IF('3. Rate Classes'!Q40=1,'3. Rate Classes'!C40, 0) -> 0 | D41: =IF(ISERROR(VLOOKUP($B41, '3. Rate Classes'!$C$24:$H$45,6,0)), "", VLOOKUP($B41, '3. Rate Classes'!$C$24:$H$45,6,0)) ->  | F41: =IF(ISERROR(VLOOKUP($B41,'3. Rate Classes'!$C$24:$N$45, 11,0)), "", VLOOKUP($B41,'3. Rate Classes'!$C$24:$N$45, 11,0)) ->  | H41: =VLOOKUP('9. Adj Network to Current WS'!$B41, '4. RRR Data'!$B$27:$M$49,11,0) -> 0 | J41: =VLOOKUP('9. Adj Network to Current WS'!$B41, '4. RRR Data'!$B$27:$M$49,12,0) -> 0 | P41: =IF(ISERROR('7. Current Wholesale'!$P$75*N41), "", '7. Current Wholesale'!$P$75*N41) -> 
B42: =IF('3. Rate Classes'!Q41=1,'3. Rate Classes'!C41, 0) -> 0 | D42: =IF(ISERROR(VLOOKUP($B42, '3. Rate Classes'!$C$24:$H$45,6,0)), "", VLOOKUP($B42, '3. Rate Classes'!$C$24:$H$45,6,0)) ->  | F42: =IF(ISERROR(VLOOKUP($B42,'3. Rate Classes'!$C$24:$N$45, 11,0)), "", VLOOKUP($B42,'3. Rate Classes'!$C$24:$N$45, 11,0)) ->  | H42: =VLOOKUP('9. Adj Network to Current WS'!$B42, '4. RRR Data'!$B$27:$M$49,11,0) -> 0 | J42: =VLOOKUP('9. Adj Network to Current WS'!$B42, '4. RRR Data'!$B$27:$M$49,12,0) -> 0 | P42: =IF(ISERROR('7. Current Wholesale'!$P$75*N42), "", '7. Current Wholesale'!$P$75*N42) -> 
B43: =IF('3. Rate Classes'!Q42=1,'3. Rate Classes'!C42, 0) -> 0 | D43: =IF(ISERROR(VLOOKUP($B43, '3. Rate Classes'!$C$24:$H$45,6,0)), "", VLOOKUP($B43, '3. Rate Classes'!$C$24:$H$45,6,0)) ->  | F43: =IF(ISERROR(VLOOKUP($B43,'3. Rate Classes'!$C$24:$N$45, 11,0)), "", VLOOKUP($B43,'3. Rate Classes'!$C$24:$N$45, 11,0)) ->  | H43: =VLOOKUP('9. Adj Network to Current WS'!$B43, '4. RRR Data'!$B$27:$M$49,11,0) -> 0 | J43: =VLOOKUP('9. Adj Network to Current WS'!$B43, '4. RRR Data'!$B$27:$M$49,12,0) -> 0 | P43: =IF(ISERROR('7. Current Wholesale'!$P$75*N43), "", '7. Current Wholesale'!$P$75*N43) -> 
B44: =IF('3. Rate Classes'!Q43=1,'3. Rate Classes'!C43, 0) -> 0 | D44: =IF(ISERROR(VLOOKUP($B44, '3. Rate Classes'!$C$24:$H$45,6,0)), "", VLOOKUP($B44, '3. Rate Classes'!$C$24:$H$45,6,0)) ->  | F44: =IF(ISERROR(VLOOKUP($B44,'3. Rate Classes'!$C$24:$N$45, 11,0)), "", VLOOKUP($B44,'3. Rate Classes'!$C$24:$N$45, 11,0)) ->  | H44: =VLOOKUP('9. Adj Network to Current WS'!$B44, '4. RRR Data'!$B$27:$M$49,11,0) -> 0 | J44: =VLOOKUP('9. Adj Network to Current WS'!$B44, '4. RRR Data'!$B$27:$M$49,12,0) -> 0 | P44: =IF(ISERROR('7. Current Wholesale'!$P$75*N44), "", '7. Current Wholesale'!$P$75*N44) -> 
B45: =IF('3. Rate Classes'!Q44=1,'3. Rate Classes'!C44, 0) -> 0 | D45: =IF(ISERROR(VLOOKUP($B45, '3. Rate Classes'!$C$24:$H$45,6,0)), "", VLOOKUP($B45, '3. Rate Classes'!$C$24:$H$45,6,0)) ->  | F45: =IF(ISERROR(VLOOKUP($B45,'3. Rate Classes'!$C$24:$N$45, 11,0)), "", VLOOKUP($B45,'3. Rate Classes'!$C$24:$N$45, 11,0)) ->  | H45: =VLOOKUP('9. Adj Network to Current WS'!$B45, '4. RRR Data'!$B$27:$M$49,11,0) -> 0 | J45: =VLOOKUP('9. Adj Network to Current WS'!$B45, '4. RRR Data'!$B$27:$M$49,12,0) -> 0 | P45: =IF(ISERROR('7. Current Wholesale'!$P$75*N45), "", '7. Current Wholesale'!$P$75*N45) -> 
B46: =IF('3. Rate Classes'!Q45=1,'3. Rate Classes'!C45, 0) -> 0 | D46: =IF(ISERROR(VLOOKUP($B46, '3. Rate Classes'!$C$24:$H$45,6,0)), "", VLOOKUP($B46, '3. Rate Classes'!$C$24:$H$45,6,0)) ->  | F46: =IF(ISERROR(VLOOKUP($B46,'3. Rate Classes'!$C$24:$N$45, 11,0)), "", VLOOKUP($B46,'3. Rate Classes'!$C$24:$N$45, 11,0)) ->  | H46: =VLOOKUP('9. Adj Network to Current WS'!$B46, '4. RRR Data'!$B$27:$M$49,11,0) -> 0 | J46: =VLOOKUP('9. Adj Network to Current WS'!$B46, '4. RRR Data'!$B$27:$M$49,12,0) -> 0 | P46: =IF(ISERROR('7. Current Wholesale'!$P$75*N46), "", '7. Current Wholesale'!$P$75*N46) -> 
L49: =SUM(L25:L46) -> 6126194.694

Sheet 11. Adj Network to Forecast WS
B13: The purpose of this sheet is to update the re-align RTS Network Rates to recover forecast wholesale network costs.
B22: Rate Class | D22: Unit | F22: Adjusted RTSR-Network | H22: Loss Adjusted Billed kWh | J22: Loss Adjusted Billed kW | L22: Billed Amount | N22: Billed Amount % | P22: Forecast Wholesale Billing | R22: Proposed RTSR Network
B25: =IF('3. Rate Classes'!Q24=1,'3. Rate Classes'!C24, 0) -> Residential | D25: =IF(ISERROR(VLOOKUP($B25, '3. Rate Classes'!$C$24:$H$45,6,0)), "", VLOOKUP($B25, '3. Rate Classes'!$C$24:$H$45,6,0)) -> kWh | F25: =VLOOKUP($B25, '9. Adj Network to Current WS'!$B$25:$R$47, 17,0) -> 0.007226410503 | H25: =VLOOKUP('9. Adj Network to Current WS'!$B25, '4. RRR Data'!$B$27:$M$49,11,0) -> 508218722.5 | J25: =VLOOKUP('9. Adj Network to Current WS'!$B25, '4. RRR Data'!$B$27:$M$49,12,0) -> 0 | L25: =IF(F25="", "", IF(D25="kWh", F25*H25, F25*J25)) -> 3672597.114 | N25: =IF(ISERROR(L25/$L$49), "", L25/$L$49) -> 0.4639516409 | P25: =IF(ISERROR('8. Forecast Wholesale'!$F$75*N25), "", '8. Forecast Wholesale'!$F$75*N25) -> 3672597.114 | R25: =IF(D25="","",IF(D25="kWh",IF(H25<>0,P25/H25,),IF(J25<>0,P25/J25,0))) -> 0.007226410503
B26: =IF('3. Rate Classes'!Q25=1,'3. Rate Classes'!C25, 0) -> General Service Less Than 50 kW | D26: =IF(ISERROR(VLOOKUP($B26, '3. Rate Classes'!$C$24:$H$45,6,0)), "", VLOOKUP($B26, '3. Rate Classes'!$C$24:$H$45,6,0)) -> kWh | F26: =VLOOKUP($B26, '9. Adj Network to Current WS'!$B$25:$R$47, 17,0) -> 0.006569464093 | H26: =VLOOKUP('9. Adj Network to Current WS'!$B26, '4. RRR Data'!$B$27:$M$49,11,0) -> 142304267.3 | J26: =VLOOKUP('9. Adj Network to Current WS'!$B26, '4. RRR Data'!$B$27:$M$49,12,0) -> 0 | L26: 934862.7741 | N26: 0.1180992918 | P26: =IF(ISERROR('8. Forecast Wholesale'!$F$75*N26), "", '8. Forecast Wholesale'!$F$75*N26) -> 934862.7741 | R26: 0.006569464093
B27: =IF('3. Rate Classes'!Q26=1,'3. Rate Classes'!C26, 0) -> General Service 50 to 999 kW | D27: =IF(ISERROR(VLOOKUP($B27, '3. Rate Classes'!$C$24:$H$45,6,0)), "", VLOOKUP($B27, '3. Rate Classes'!$C$24:$H$45,6,0)) -> kW | F27: =VLOOKUP($B27, '9. Adj Network to Current WS'!$B$25:$R$47, 17,0) -> 2.392489332 | H27: =VLOOKUP('9. Adj Network to Current WS'!$B27, '4. RRR Data'!$B$27:$M$49,11,0) -> 161366304 | J27: =VLOOKUP('9. Adj Network to Current WS'!$B27, '4. RRR Data'!$B$27:$M$49,12,0) -> 414036 | L27: 990576.713 | N27: 0.1251375191 | P27: =IF(ISERROR('8. Forecast Wholesale'!$F$75*N27), "", '8. Forecast Wholesale'!$F$75*N27) -> 990576.713 | R27: 2.392489332
B28: =IF('3. Rate Classes'!Q27=1,'3. Rate Classes'!C27, 0) -> General Service 50 to 999 kW - Interval Metered | D28: =IF(ISERROR(VLOOKUP($B28, '3. Rate Classes'!$C$24:$H$45,6,0)), "", VLOOKUP($B28, '3. Rate Classes'!$C$24:$H$45,6,0)) -> kW | F28: =VLOOKUP($B28, '9. Adj Network to Current WS'!$B$25:$R$47, 17,0) -> 3.066516348 | H28: =VLOOKUP('9. Adj Network to Current WS'!$B28, '4. RRR Data'!$B$27:$M$49,11,0) -> 198168071 | J28: =VLOOKUP('9. Adj Network to Current WS'!$B28, '4. RRR Data'!$B$27:$M$49,12,0) -> 453034 | L28: 1389236.167 | N28: 0.1754993481 | P28: =IF(ISERROR('8. Forecast Wholesale'!$F$75*N28), "", '8. Forecast Wholesale'!$F$75*N28) -> 1389236.167 | R28: 3.066516348
B29: =IF('3. Rate Classes'!Q28=1,'3. Rate Classes'!C28, 0) -> General Service 1,000 to 4,999 kW | D29: =IF(ISERROR(VLOOKUP($B29, '3. Rate Classes'!$C$24:$H$45,6,0)), "", VLOOKUP($B29, '3. Rate Classes'!$C$24:$H$45,6,0)) -> kW | F29: =VLOOKUP($B29, '9. Adj Network to Current WS'!$B$25:$R$47, 17,0) -> 3.066516348 | H29: =VLOOKUP('9. Adj Network to Current WS'!$B29, '4. RRR Data'!$B$27:$M$49,11,0) -> 79908016 | J29: =VLOOKUP('9. Adj Network to Current WS'!$B29, '4. RRR Data'!$B$27:$M$49,12,0) -> 192700 | L29: 590917.7002 | N29: 0.07464941788 | P29: =IF(ISERROR('8. Forecast Wholesale'!$F$75*N29), "", '8. Forecast Wholesale'!$F$75*N29) -> 590917.7002 | R29: 3.066516348
B30: =IF('3. Rate Classes'!Q29=1,'3. Rate Classes'!C29, 0) -> Large Use | D30: =IF(ISERROR(VLOOKUP($B30, '3. Rate Classes'!$C$24:$H$45,6,0)), "", VLOOKUP($B30, '3. Rate Classes'!$C$24:$H$45,6,0)) -> kW | F30: =VLOOKUP($B30, '9. Adj Network to Current WS'!$B$25:$R$47, 17,0) -> 3.267322967 | H30: =VLOOKUP('9. Adj Network to Current WS'!$B30, '4. RRR Data'!$B$27:$M$49,11,0) -> 37740699 | J30: =VLOOKUP('9. Adj Network to Current WS'!$B30, '4. RRR Data'!$B$27:$M$49,12,0) -> 83704 | L30: 273488.0016 | N30: 0.03454917683 | P30: =IF(ISERROR('8. Forecast Wholesale'!$F$75*N30), "", '8. Forecast Wholesale'!$F$75*N30) -> 273488.0016 | R30: 3.267322967
B31: =IF('3. Rate Classes'!Q30=1,'3. Rate Classes'!C30, 0) -> Unmetered Scattered Load | D31: =IF(ISERROR(VLOOKUP($B31, '3. Rate Classes'!$C$24:$H$45,6,0)), "", VLOOKUP($B31, '3. Rate Classes'!$C$24:$H$45,6,0)) -> kWh | F31: =VLOOKUP($B31, '9. Adj Network to Current WS'!$B$25:$R$47, 17,0) -> 0.006569464093 | H31: =VLOOKUP('9. Adj Network to Current WS'!$B31, '4. RRR Data'!$B$27:$M$49,11,0) -> 2903879.664 | J31: =VLOOKUP('9. Adj Network to Current WS'!$B31, '4. RRR Data'!$B$27:$M$49,12,0) -> 0 | L31: 19076.93318 | N31: 0.002409949738 | P31: =IF(ISERROR('8. Forecast Wholesale'!$F$75*N31), "", '8. Forecast Wholesale'!$F$75*N31) -> 19076.93318 | R31: 0.006569464093
B32: =IF('3. Rate Classes'!Q31=1,'3. Rate Classes'!C31, 0) -> Sentinel Lighting | D32: =IF(ISERROR(VLOOKUP($B32, '3. Rate Classes'!$C$24:$H$45,6,0)), "", VLOOKUP($B32, '3. Rate Classes'!$C$24:$H$45,6,0)) -> kW | F32: =VLOOKUP($B32, '9. Adj Network to Current WS'!$B$25:$R$47, 17,0) -> 1.65024938 | H32: =VLOOKUP('9. Adj Network to Current WS'!$B32, '4. RRR Data'!$B$27:$M$49,11,0) -> 38567 | J32: =VLOOKUP('9. Adj Network to Current WS'!$B32, '4. RRR Data'!$B$27:$M$49,12,0) -> 115 | L32: 189.7786787 | N32: 2.397435021e-05 | P32: =IF(ISERROR('8. Forecast Wholesale'!$F$75*N32), "", '8. Forecast Wholesale'!$F$75*N32) -> 189.7786787 | R32: 1.65024938
B33: =IF('3. Rate Classes'!Q32=1,'3. Rate Classes'!C32, 0) -> Street Lighting | D33: =IF(ISERROR(VLOOKUP($B33, '3. Rate Classes'!$C$24:$H$45,6,0)), "", VLOOKUP($B33, '3. Rate Classes'!$C$24:$H$45,6,0)) -> kW | F33: =VLOOKUP($B33, '9. Adj Network to Current WS'!$B$25:$R$47, 17,0) -> 1.622219667 | H33: =VLOOKUP('9. Adj Network to Current WS'!$B33, '4. RRR Data'!$B$27:$M$49,11,0) -> 10214450 | J33: =VLOOKUP('9. Adj Network to Current WS'!$B33, '4. RRR Data'!$B$27:$M$49,12,0) -> 27715 | L33: 44959.81807 | N33: 0.005679681359 | P33: =IF(ISERROR('8. Forecast Wholesale'!$F$75*N33), "", '8. Forecast Wholesale'!$F$75*N33) -> 44959.81807 | R33: 1.622219667
B34: =IF('3. Rate Classes'!Q33=1,'3. Rate Classes'!C33, 0) -> 0 | D34: =IF(ISERROR(VLOOKUP($B34, '3. Rate Classes'!$C$24:$H$45,6,0)), "", VLOOKUP($B34, '3. Rate Classes'!$C$24:$H$45,6,0)) ->  | F34: =VLOOKUP($B34, '9. Adj Network to Current WS'!$B$25:$R$47, 17,0) ->  | H34: =VLOOKUP('9. Adj Network to Current WS'!$B34, '4. RRR Data'!$B$27:$M$49,11,0) -> 0 | J34: =VLOOKUP('9. Adj Network to Current WS'!$B34, '4. RRR Data'!$B$27:$M$49,12,0) -> 0 | P34: =IF(ISERROR('8. Forecast Wholesale'!$F$75*N34), "", '8. Forecast Wholesale'!$F$75*N34) -> 
B35: =IF('3. Rate Classes'!Q34=1,'3. Rate Classes'!C34, 0) -> 0 | D35: =IF(ISERROR(VLOOKUP($B35, '3. Rate Classes'!$C$24:$H$45,6,0)), "", VLOOKUP($B35, '3. Rate Classes'!$C$24:$H$45,6,0)) ->  | F35: =VLOOKUP($B35, '9. Adj Network to Current WS'!$B$25:$R$47, 17,0) ->  | H35: =VLOOKUP('9. Adj Network to Current WS'!$B35, '4. RRR Data'!$B$27:$M$49,11,0) -> 0 | J35: =VLOOKUP('9. Adj Network to Current WS'!$B35, '4. RRR Data'!$B$27:$M$49,12,0) -> 0 | P35: =IF(ISERROR('8. Forecast Wholesale'!$F$75*N35), "", '8. Forecast Wholesale'!$F$75*N35) -> 
B36: =IF('3. Rate Classes'!Q35=1,'3. Rate Classes'!C35, 0) -> 0 | D36: =IF(ISERROR(VLOOKUP($B36, '3. Rate Classes'!$C$24:$H$45,6,0)), "", VLOOKUP($B36, '3. Rate Classes'!$C$24:$H$45,6,0)) ->  | F36: =VLOOKUP($B36, '9. Adj Network to Current WS'!$B$25:$R$47, 17,0) ->  | H36: =VLOOKUP('9. Adj Network to Current WS'!$B36, '4. RRR Data'!$B$27:$M$49,11,0) -> 0 | J36: =VLOOKUP('9. Adj Network to Current WS'!$B36, '4. RRR Data'!$B$27:$M$49,12,0) -> 0 | P36: =IF(ISERROR('8. Forecast Wholesale'!$F$75*N36), "", '8. Forecast Wholesale'!$F$75*N36) -> 
B37: =IF('3. Rate Classes'!Q36=1,'3. Rate Classes'!C36, 0) -> 0 | D37: =IF(ISERROR(VLOOKUP($B37, '3. Rate Classes'!$C$24:$H$45,6,0)), "", VLOOKUP($B37, '3. Rate Classes'!$C$24:$H$45,6,0)) ->  | F37: =VLOOKUP($B37, '9. Adj Network to Current WS'!$B$25:$R$47, 17,0) ->  | H37: =VLOOKUP('9. Adj Network to Current WS'!$B37, '4. RRR Data'!$B$27:$M$49,11,0) -> 0 | J37: =VLOOKUP('9. Adj Network to Current WS'!$B37, '4. RRR Data'!$B$27:$M$49,12,0) -> 0 | P37: =IF(ISERROR('8. Forecast Wholesale'!$F$75*N37), "", '8. Forecast Wholesale'!$F$75*N37) -> 
B38: =IF('3. Rate Classes'!Q37=1,'3. Rate Classes'!C37, 0) -> 0 | D38: =IF(ISERROR(VLOOKUP($B38, '3. Rate Classes'!$C$24:$H$45,6,0)), "", VLOOKUP($B38, '3. Rate Classes'!$C$24:$H$45,6,0)) ->  | F38: =VLOOKUP($B38, '9. Adj Network to Current WS'!$B$25:$R$47, 17,0) ->  | H38: =VLOOKUP('9. Adj Network to Current WS'!$B38, '4. RRR Data'!$B$27:$M$49,11,0) -> 0 | J38: =VLOOKUP('9. Adj Network to Current WS'!$B38, '4. RRR Data'!$B$27:$M$49,12,0) -> 0 | P38: =IF(ISERROR('8. Forecast Wholesale'!$F$75*N38), "", '8. Forecast Wholesale'!$F$75*N38) -> 
B39: =IF('3. Rate Classes'!Q38=1,'3. Rate Classes'!C38, 0) -> 0 | D39: =IF(ISERROR(VLOOKUP($B39, '3. Rate Classes'!$C$24:$H$45,6,0)), "", VLOOKUP($B39, '3. Rate Classes'!$C$24:$H$45,6,0)) ->  | F39: =VLOOKUP($B39, '9. Adj Network to Current WS'!$B$25:$R$47, 17,0) ->  | H39: =VLOOKUP('9. Adj Network to Current WS'!$B39, '4. RRR Data'!$B$27:$M$49,11,0) -> 0 | J39: =VLOOKUP('9. Adj Network to Current WS'!$B39, '4. RRR Data'!$B$27:$M$49,12,0) -> 0 | P39: =IF(ISERROR('8. Forecast Wholesale'!$F$75*N39), "", '8. Forecast Wholesale'!$F$75*N39) -> 
B40: =IF('3. Rate Classes'!Q39=1,'3. Rate Classes'!C39, 0) -> 0 | D40: =IF(ISERROR(VLOOKUP($B40, '3. Rate Classes'!$C$24:$H$45,6,0)), "", VLOOKUP($B40, '3. Rate Classes'!$C$24:$H$45,6,0)) ->  | F40: =VLOOKUP($B40, '9. Adj Network to Current WS'!$B$25:$R$47, 17,0) ->  | H40: =VLOOKUP('9. Adj Network to Current WS'!$B40, '4. RRR Data'!$B$27:$M$49,11,0) -> 0 | J40: =VLOOKUP('9. Adj Network to Current WS'!$B40, '4. RRR Data'!$B$27:$M$49,12,0) -> 0 | P40: =IF(ISERROR('8. Forecast Wholesale'!$F$75*N40), "", '8. Forecast Wholesale'!$F$75*N40) -> 
B41: =IF('3. Rate Classes'!Q40=1,'3. Rate Classes'!C40, 0) -> 0 | D41: =IF(ISERROR(VLOOKUP($B41, '3. Rate Classes'!$C$24:$H$45,6,0)), "", VLOOKUP($B41, '3. Rate Classes'!$C$24:$H$45,6,0)) ->  | F41: =VLOOKUP($B41, '9. Adj Network to Current WS'!$B$25:$R$47, 17,0) ->  | H41: =VLOOKUP('9. Adj Network to Current WS'!$B41, '4. RRR Data'!$B$27:$M$49,11,0) -> 0 | J41: =VLOOKUP('9. Adj Network to Current WS'!$B41, '4. RRR Data'!$B$27:$M$49,12,0) -> 0 | P41: =IF(ISERROR('8. Forecast Wholesale'!$F$75*N41), "", '8. Forecast Wholesale'!$F$75*N41) -> 
B42: =IF('3. Rate Classes'!Q41=1,'3. Rate Classes'!C41, 0) -> 0 | D42: =IF(ISERROR(VLOOKUP($B42, '3. Rate Classes'!$C$24:$H$45,6,0)), "", VLOOKUP($B42, '3. Rate Classes'!$C$24:$H$45,6,0)) ->  | F42: =VLOOKUP($B42, '9. Adj Network to Current WS'!$B$25:$R$47, 17,0) ->  | H42: =VLOOKUP('9. Adj Network to Current WS'!$B42, '4. RRR Data'!$B$27:$M$49,11,0) -> 0 | J42: =VLOOKUP('9. Adj Network to Current WS'!$B42, '4. RRR Data'!$B$27:$M$49,12,0) -> 0 | P42: =IF(ISERROR('8. Forecast Wholesale'!$F$75*N42), "", '8. Forecast Wholesale'!$F$75*N42) -> 
B43: =IF('3. Rate Classes'!Q42=1,'3. Rate Classes'!C42, 0) -> 0 | D43: =IF(ISERROR(VLOOKUP($B43, '3. Rate Classes'!$C$24:$H$45,6,0)), "", VLOOKUP($B43, '3. Rate Classes'!$C$24:$H$45,6,0)) ->  | F43: =VLOOKUP($B43, '9. Adj Network to Current WS'!$B$25:$R$47, 17,0) ->  | H43: =VLOOKUP('9. Adj Network to Current WS'!$B43, '4. RRR Data'!$B$27:$M$49,11,0) -> 0 | J43: =VLOOKUP('9. Adj Network to Current WS'!$B43, '4. RRR Data'!$B$27:$M$49,12,0) -> 0 | P43: =IF(ISERROR('8. Forecast Wholesale'!$F$75*N43), "", '8. Forecast Wholesale'!$F$75*N43) -> 
B44: =IF('3. Rate Classes'!Q43=1,'3. Rate Classes'!C43, 0) -> 0 | D44: =IF(ISERROR(VLOOKUP($B44, '3. Rate Classes'!$C$24:$H$45,6,0)), "", VLOOKUP($B44, '3. Rate Classes'!$C$24:$H$45,6,0)) ->  | F44: =VLOOKUP($B44, '9. Adj Network to Current WS'!$B$25:$R$47, 17,0) ->  | H44: =VLOOKUP('9. Adj Network to Current WS'!$B44, '4. RRR Data'!$B$27:$M$49,11,0) -> 0 | J44: =VLOOKUP('9. Adj Network to Current WS'!$B44, '4. RRR Data'!$B$27:$M$49,12,0) -> 0 | P44: =IF(ISERROR('8. Forecast Wholesale'!$F$75*N44), "", '8. Forecast Wholesale'!$F$75*N44) -> 
B45: =IF('3. Rate Classes'!Q44=1,'3. Rate Classes'!C44, 0) -> 0 | D45: =IF(ISERROR(VLOOKUP($B45, '3. Rate Classes'!$C$24:$H$45,6,0)), "", VLOOKUP($B45, '3. Rate Classes'!$C$24:$H$45,6,0)) ->  | F45: =VLOOKUP($B45, '9. Adj Network to Current WS'!$B$25:$R$47, 17,0) ->  | H45: =VLOOKUP('9. Adj Network to Current WS'!$B45, '4. RRR Data'!$B$27:$M$49,11,0) -> 0 | J45: =VLOOKUP('9. Adj Network to Current WS'!$B45, '4. RRR Data'!$B$27:$M$49,12,0) -> 0 | P45: =IF(ISERROR('8. Forecast Wholesale'!$F$75*N45), "", '8. Forecast Wholesale'!$F$75*N45) -> 
B46: =IF('3. Rate Classes'!Q45=1,'3. Rate Classes'!C45, 0) -> 0 | D46: =IF(ISERROR(VLOOKUP($B46, '3. Rate Classes'!$C$24:$H$45,6,0)), "", VLOOKUP($B46, '3. Rate Classes'!$C$24:$H$45,6,0)) ->  | F46: =VLOOKUP($B46, '9. Adj Network to Current WS'!$B$25:$R$47, 17,0) ->  | H46: =VLOOKUP('9. Adj Network to Current WS'!$B46, '4. RRR Data'!$B$27:$M$49,11,0) -> 0 | J46: =VLOOKUP('9. Adj Network to Current WS'!$B46, '4. RRR Data'!$B$27:$M$49,12,0) -> 0 | P46: =IF(ISERROR('8. Forecast Wholesale'!$F$75*N46), "", '8. Forecast Wholesale'!$F$75*N46) -> 
L49: =SUM(L25:L46) -> 7915905

Sheet 12. Adj Conn. to Forecast WS
B13: The purpose of this sheet is to update the re-aligned RTS Connection Rates to recover forecast wholesale connection costs.
B19: Rate Class
B22: Rate Class | D22: Unit | F22: Adjusted RTSR-Connection | H22: Loss Adjusted Billed kWh | J22: Loss Adjusted Billed kW | L22: Billed Amount | N22: Billed Amount % | P22: Forecast Wholesale Billing | R22: Proposed RTSR Connection
B25: =IF('3. Rate Classes'!Q24=1,'3. Rate Classes'!C24, 0) -> Residential | D25: =IF(ISERROR(VLOOKUP($B25, '3. Rate Classes'!$C$24:$H$45,6,0)), "", VLOOKUP($B25, '3. Rate Classes'!$C$24:$H$45,6,0)) -> kWh | F25: =VLOOKUP($B25, '10. Adj Conn. to Current WS'!$B$25:$R$47, 17,0) -> 0.005686818691 | H25: =VLOOKUP('9. Adj Network to Current WS'!$B25, '4. RRR Data'!$B$27:$M$49,11,0) -> 508218722.5 | J25: =VLOOKUP('9. Adj Network to Current WS'!$B25, '4. RRR Data'!$B$27:$M$49,12,0) -> 0 | L25: =IF(F25="", "", IF(D25="kWh", F25*H25, F25*J25)) -> 2890147.73 | N25: =IF(ISERROR(L25/$L$49), "", L25/$L$49) -> 0.4645665031 | P25: =IF(ISERROR('8. Forecast Wholesale'!$P$75*N25), "", '8. Forecast Wholesale'!$P$75*N25) -> 2890147.73 | R25: =IF(D25="","",IF(D25="kWh",IF(H25<>0,P25/H25,),IF(J25<>0,P25/J25,0))) -> 0.005686818691
B26: =IF('3. Rate Classes'!Q25=1,'3. Rate Classes'!C25, 0) -> General Service Less Than 50 kW | D26: =IF(ISERROR(VLOOKUP($B26, '3. Rate Classes'!$C$24:$H$45,6,0)), "", VLOOKUP($B26, '3. Rate Classes'!$C$24:$H$45,6,0)) -> kWh | F26: =VLOOKUP($B26, '10. Adj Conn. to Current WS'!$B$25:$R$47, 17,0) -> 0.005179067022 | H26: =VLOOKUP('9. Adj Network to Current WS'!$B26, '4. RRR Data'!$B$27:$M$49,11,0) -> 142304267.3 | J26: =VLOOKUP('9. Adj Network to Current WS'!$B26, '4. RRR Data'!$B$27:$M$49,12,0) -> 0 | L26: 737003.3376 | N26: 0.1184669765 | P26: =IF(ISERROR('8. Forecast Wholesale'!$P$75*N26), "", '8. Forecast Wholesale'!$P$75*N26) -> 737003.3376 | R26: 0.005179067022
B27: =IF('3. Rate Classes'!Q26=1,'3. Rate Classes'!C26, 0) -> General Service 50 to 999 kW | D27: =IF(ISERROR(VLOOKUP($B27, '3. Rate Classes'!$C$24:$H$45,6,0)), "", VLOOKUP($B27, '3. Rate Classes'!$C$24:$H$45,6,0)) -> kW | F27: =VLOOKUP($B27, '10. Adj Conn. to Current WS'!$B$25:$R$47, 17,0) -> 1.865479631 | H27: =VLOOKUP('9. Adj Network to Current WS'!$B27, '4. RRR Data'!$B$27:$M$49,11,0) -> 161366304 | J27: =VLOOKUP('9. Adj Network to Current WS'!$B27, '4. RRR Data'!$B$27:$M$49,12,0) -> 414036 | L27: 772375.7246 | N27: 0.1241527849 | P27: =IF(ISERROR('8. Forecast Wholesale'!$P$75*N27), "", '8. Forecast Wholesale'!$P$75*N27) -> 772375.7246 | R27: 1.865479631
B28: =IF('3. Rate Classes'!Q27=1,'3. Rate Classes'!C27, 0) -> General Service 50 to 999 kW - Interval Metered | D28: =IF(ISERROR(VLOOKUP($B28, '3. Rate Classes'!$C$24:$H$45,6,0)), "", VLOOKUP($B28, '3. Rate Classes'!$C$24:$H$45,6,0)) -> kW | F28: =VLOOKUP($B28, '10. Adj Conn. to Current WS'!$B$25:$R$47, 17,0) -> 2.369778589 | H28: =VLOOKUP('9. Adj Network to Current WS'!$B28, '4. RRR Data'!$B$27:$M$49,11,0) -> 198168071 | J28: =VLOOKUP('9. Adj Network to Current WS'!$B28, '4. RRR Data'!$B$27:$M$49,12,0) -> 453034 | L28: 1073590.273 | N28: 0.1725704447 | P28: =IF(ISERROR('8. Forecast Wholesale'!$P$75*N28), "", '8. Forecast Wholesale'!$P$75*N28) -> 1073590.273 | R28: 2.369778589
B29: =IF('3. Rate Classes'!Q28=1,'3. Rate Classes'!C28, 0) -> General Service 1,000 to 4,999 kW | D29: =IF(ISERROR(VLOOKUP($B29, '3. Rate Classes'!$C$24:$H$45,6,0)), "", VLOOKUP($B29, '3. Rate Classes'!$C$24:$H$45,6,0)) -> kW | F29: =VLOOKUP($B29, '10. Adj Conn. to Current WS'!$B$25:$R$47, 17,0) -> 2.369778589 | H29: =VLOOKUP('9. Adj Network to Current WS'!$B29, '4. RRR Data'!$B$27:$M$49,11,0) -> 79908016 | J29: =VLOOKUP('9. Adj Network to Current WS'!$B29, '4. RRR Data'!$B$27:$M$49,12,0) -> 192700 | L29: 456656.334 | N29: 0.07340359595 | P29: =IF(ISERROR('8. Forecast Wholesale'!$P$75*N29), "", '8. Forecast Wholesale'!$P$75*N29) -> 456656.334 | R29: 2.369778589
B30: =IF('3. Rate Classes'!Q29=1,'3. Rate Classes'!C29, 0) -> Large Use | D30: =IF(ISERROR(VLOOKUP($B30, '3. Rate Classes'!$C$24:$H$45,6,0)), "", VLOOKUP($B30, '3. Rate Classes'!$C$24:$H$45,6,0)) -> kW | F30: =VLOOKUP($B30, '10. Adj Conn. to Current WS'!$B$25:$R$47, 17,0) -> 2.585776149 | H30: =VLOOKUP('9. Adj Network to Current WS'!$B30, '4. RRR Data'!$B$27:$M$49,11,0) -> 37740699 | J30: =VLOOKUP('9. Adj Network to Current WS'!$B30, '4. RRR Data'!$B$27:$M$49,12,0) -> 83704 | L30: 216439.8067 | N30: 0.03479084584 | P30: =IF(ISERROR('8. Forecast Wholesale'!$P$75*N30), "", '8. Forecast Wholesale'!$P$75*N30) -> 216439.8067 | R30: 2.585776149
B31: =IF('3. Rate Classes'!Q30=1,'3. Rate Classes'!C30, 0) -> Unmetered Scattered Load | D31: =IF(ISERROR(VLOOKUP($B31, '3. Rate Classes'!$C$24:$H$45,6,0)), "", VLOOKUP($B31, '3. Rate Classes'!$C$24:$H$45,6,0)) -> kWh | F31: =VLOOKUP($B31, '10. Adj Conn. to Current WS'!$B$25:$R$47, 17,0) -> 0.005179067022 | H31: =VLOOKUP('9. Adj Network to Current WS'!$B31, '4. RRR Data'!$B$27:$M$49,11,0) -> 2903879.664 | J31: =VLOOKUP('9. Adj Network to Current WS'!$B31, '4. RRR Data'!$B$27:$M$49,12,0) -> 0 | L31: 15039.3874 | N31: 0.002417452762 | P31: =IF(ISERROR('8. Forecast Wholesale'!$P$75*N31), "", '8. Forecast Wholesale'!$P$75*N31) -> 15039.3874 | R31: 0.005179067022
B32: =IF('3. Rate Classes'!Q31=1,'3. Rate Classes'!C31, 0) -> Sentinel Lighting | D32: =IF(ISERROR(VLOOKUP($B32, '3. Rate Classes'!$C$24:$H$45,6,0)), "", VLOOKUP($B32, '3. Rate Classes'!$C$24:$H$45,6,0)) -> kW | F32: =VLOOKUP($B32, '10. Adj Conn. to Current WS'!$B$25:$R$47, 17,0) -> 2.190034498 | H32: =VLOOKUP('9. Adj Network to Current WS'!$B32, '4. RRR Data'!$B$27:$M$49,11,0) -> 38567 | J32: =VLOOKUP('9. Adj Network to Current WS'!$B32, '4. RRR Data'!$B$27:$M$49,12,0) -> 115 | L32: 251.8539673 | N32: 4.048336894e-05 | P32: =IF(ISERROR('8. Forecast Wholesale'!$P$75*N32), "", '8. Forecast Wholesale'!$P$75*N32) -> 251.8539673 | R32: 2.190034498
B33: =IF('3. Rate Classes'!Q32=1,'3. Rate Classes'!C32, 0) -> Street Lighting | D33: =IF(ISERROR(VLOOKUP($B33, '3. Rate Classes'!$C$24:$H$45,6,0)), "", VLOOKUP($B33, '3. Rate Classes'!$C$24:$H$45,6,0)) -> kW | F33: =VLOOKUP($B33, '10. Adj Conn. to Current WS'!$B$25:$R$47, 17,0) -> 2.152867076 | H33: =VLOOKUP('9. Adj Network to Current WS'!$B33, '4. RRR Data'!$B$27:$M$49,11,0) -> 10214450 | J33: =VLOOKUP('9. Adj Network to Current WS'!$B33, '4. RRR Data'!$B$27:$M$49,12,0) -> 27715 | L33: 59666.711 | N33: 0.009590912946 | P33: =IF(ISERROR('8. Forecast Wholesale'!$P$75*N33), "", '8. Forecast Wholesale'!$P$75*N33) -> 59666.711 | R33: 2.152867076
B34: =IF('3. Rate Classes'!Q33=1,'3. Rate Classes'!C33, 0) -> 0 | D34: =IF(ISERROR(VLOOKUP($B34, '3. Rate Classes'!$C$24:$H$45,6,0)), "", VLOOKUP($B34, '3. Rate Classes'!$C$24:$H$45,6,0)) ->  | F34: =VLOOKUP($B34, '10. Adj Conn. to Current WS'!$B$25:$R$47, 17,0) ->  | H34: =VLOOKUP('9. Adj Network to Current WS'!$B34, '4. RRR Data'!$B$27:$M$49,11,0) -> 0 | J34: =VLOOKUP('9. Adj Network to Current WS'!$B34, '4. RRR Data'!$B$27:$M$49,12,0) -> 0 | P34: =IF(ISERROR('8. Forecast Wholesale'!$P$75*N34), "", '8. Forecast Wholesale'!$P$75*N34) -> 
B35: =IF('3. Rate Classes'!Q34=1,'3. Rate Classes'!C34, 0) -> 0 | D35: =IF(ISERROR(VLOOKUP($B35, '3. Rate Classes'!$C$24:$H$45,6,0)), "", VLOOKUP($B35, '3. Rate Classes'!$C$24:$H$45,6,0)) ->  | F35: =VLOOKUP($B35, '10. Adj Conn. to Current WS'!$B$25:$R$47, 17,0) ->  | H35: =VLOOKUP('9. Adj Network to Current WS'!$B35, '4. RRR Data'!$B$27:$M$49,11,0) -> 0 | J35: =VLOOKUP('9. Adj Network to Current WS'!$B35, '4. RRR Data'!$B$27:$M$49,12,0) -> 0 | P35: =IF(ISERROR('8. Forecast Wholesale'!$P$75*N35), "", '8. Forecast Wholesale'!$P$75*N35) -> 
B36: =IF('3. Rate Classes'!Q35=1,'3. Rate Classes'!C35, 0) -> 0 | D36: =IF(ISERROR(VLOOKUP($B36, '3. Rate Classes'!$C$24:$H$45,6,0)), "", VLOOKUP($B36, '3. Rate Classes'!$C$24:$H$45,6,0)) ->  | F36: =VLOOKUP($B36, '10. Adj Conn. to Current WS'!$B$25:$R$47, 17,0) ->  | H36: =VLOOKUP('9. Adj Network to Current WS'!$B36, '4. RRR Data'!$B$27:$M$49,11,0) -> 0 | J36: =VLOOKUP('9. Adj Network to Current WS'!$B36, '4. RRR Data'!$B$27:$M$49,12,0) -> 0 | P36: =IF(ISERROR('8. Forecast Wholesale'!$P$75*N36), "", '8. Forecast Wholesale'!$P$75*N36) -> 
B37: =IF('3. Rate Classes'!Q36=1,'3. Rate Classes'!C36, 0) -> 0 | D37: =IF(ISERROR(VLOOKUP($B37, '3. Rate Classes'!$C$24:$H$45,6,0)), "", VLOOKUP($B37, '3. Rate Classes'!$C$24:$H$45,6,0)) ->  | F37: =VLOOKUP($B37, '10. Adj Conn. to Current WS'!$B$25:$R$47, 17,0) ->  | H37: =VLOOKUP('9. Adj Network to Current WS'!$B37, '4. RRR Data'!$B$27:$M$49,11,0) -> 0 | J37: =VLOOKUP('9. Adj Network to Current WS'!$B37, '4. RRR Data'!$B$27:$M$49,12,0) -> 0 | P37: =IF(ISERROR('8. Forecast Wholesale'!$P$75*N37), "", '8. Forecast Wholesale'!$P$75*N37) -> 
B38: =IF('3. Rate Classes'!Q37=1,'3. Rate Classes'!C37, 0) -> 0 | D38: =IF(ISERROR(VLOOKUP($B38, '3. Rate Classes'!$C$24:$H$45,6,0)), "", VLOOKUP($B38, '3. Rate Classes'!$C$24:$H$45,6,0)) ->  | F38: =VLOOKUP($B38, '10. Adj Conn. to Current WS'!$B$25:$R$47, 17,0) ->  | H38: =VLOOKUP('9. Adj Network to Current WS'!$B38, '4. RRR Data'!$B$27:$M$49,11,0) -> 0 | J38: =VLOOKUP('9. Adj Network to Current WS'!$B38, '4. RRR Data'!$B$27:$M$49,12,0) -> 0 | P38: =IF(ISERROR('8. Forecast Wholesale'!$P$75*N38), "", '8. Forecast Wholesale'!$P$75*N38) -> 
B39: =IF('3. Rate Classes'!Q38=1,'3. Rate Classes'!C38, 0) -> 0 | D39: =IF(ISERROR(VLOOKUP($B39, '3. Rate Classes'!$C$24:$H$45,6,0)), "", VLOOKUP($B39, '3. Rate Classes'!$C$24:$H$45,6,0)) ->  | F39: =VLOOKUP($B39, '10. Adj Conn. to Current WS'!$B$25:$R$47, 17,0) ->  | H39: =VLOOKUP('9. Adj Network to Current WS'!$B39, '4. RRR Data'!$B$27:$M$49,11,0) -> 0 | J39: =VLOOKUP('9. Adj Network to Current WS'!$B39, '4. RRR Data'!$B$27:$M$49,12,0) -> 0 | P39: =IF(ISERROR('8. Forecast Wholesale'!$P$75*N39), "", '8. Forecast Wholesale'!$P$75*N39) -> 
B40: =IF('3. Rate Classes'!Q39=1,'3. Rate Classes'!C39, 0) -> 0 | D40: =IF(ISERROR(VLOOKUP($B40, '3. Rate Classes'!$C$24:$H$45,6,0)), "", VLOOKUP($B40, '3. Rate Classes'!$C$24:$H$45,6,0)) ->  | F40: =VLOOKUP($B40, '10. Adj Conn. to Current WS'!$B$25:$R$47, 17,0) ->  | H40: =VLOOKUP('9. Adj Network to Current WS'!$B40, '4. RRR Data'!$B$27:$M$49,11,0) -> 0 | J40: =VLOOKUP('9. Adj Network to Current WS'!$B40, '4. RRR Data'!$B$27:$M$49,12,0) -> 0 | P40: =IF(ISERROR('8. Forecast Wholesale'!$P$75*N40), "", '8. Forecast Wholesale'!$P$75*N40) -> 
B41: =IF('3. Rate Classes'!Q40=1,'3. Rate Classes'!C40, 0) -> 0 | D41: =IF(ISERROR(VLOOKUP($B41, '3. Rate Classes'!$C$24:$H$45,6,0)), "", VLOOKUP($B41, '3. Rate Classes'!$C$24:$H$45,6,0)) ->  | F41: =VLOOKUP($B41, '10. Adj Conn. to Current WS'!$B$25:$R$47, 17,0) ->  | H41: =VLOOKUP('9. Adj Network to Current WS'!$B41, '4. RRR Data'!$B$27:$M$49,11,0) -> 0 | J41: =VLOOKUP('9. Adj Network to Current WS'!$B41, '4. RRR Data'!$B$27:$M$49,12,0) -> 0 | P41: =IF(ISERROR('8. Forecast Wholesale'!$P$75*N41), "", '8. Forecast Wholesale'!$P$75*N41) -> 
B42: =IF('3. Rate Classes'!Q41=1,'3. Rate Classes'!C41, 0) -> 0 | D42: =IF(ISERROR(VLOOKUP($B42, '3. Rate Classes'!$C$24:$H$45,6,0)), "", VLOOKUP($B42, '3. Rate Classes'!$C$24:$H$45,6,0)) ->  | F42: =VLOOKUP($B42, '10. Adj Conn. to Current WS'!$B$25:$R$47, 17,0) ->  | H42: =VLOOKUP('9. Adj Network to Current WS'!$B42, '4. RRR Data'!$B$27:$M$49,11,0) -> 0 | J42: =VLOOKUP('9. Adj Network to Current WS'!$B42, '4. RRR Data'!$B$27:$M$49,12,0) -> 0 | P42: =IF(ISERROR('8. Forecast Wholesale'!$P$75*N42), "", '8. Forecast Wholesale'!$P$75*N42) -> 
B43: =IF('3. Rate Classes'!Q42=1,'3. Rate Classes'!C42, 0) -> 0 | D43: =IF(ISERROR(VLOOKUP($B43, '3. Rate Classes'!$C$24:$H$45,6,0)), "", VLOOKUP($B43, '3. Rate Classes'!$C$24:$H$45,6,0)) ->  | F43: =VLOOKUP($B43, '10. Adj Conn. to Current WS'!$B$25:$R$47, 17,0) ->  | H43: =VLOOKUP('9. Adj Network to Current WS'!$B43, '4. RRR Data'!$B$27:$M$49,11,0) -> 0 | J43: =VLOOKUP('9. Adj Network to Current WS'!$B43, '4. RRR Data'!$B$27:$M$49,12,0) -> 0 | P43: =IF(ISERROR('8. Forecast Wholesale'!$P$75*N43), "", '8. Forecast Wholesale'!$P$75*N43) -> 
B44: =IF('3. Rate Classes'!Q43=1,'3. Rate Classes'!C43, 0) -> 0 | D44: =IF(ISERROR(VLOOKUP($B44, '3. Rate Classes'!$C$24:$H$45,6,0)), "", VLOOKUP($B44, '3. Rate Classes'!$C$24:$H$45,6,0)) ->  | F44: =VLOOKUP($B44, '10. Adj Conn. to Current WS'!$B$25:$R$47, 17,0) ->  | H44: =VLOOKUP('9. Adj Network to Current WS'!$B44, '4. RRR Data'!$B$27:$M$49,11,0) -> 0 | J44: =VLOOKUP('9. Adj Network to Current WS'!$B44, '4. RRR Data'!$B$27:$M$49,12,0) -> 0 | P44: =IF(ISERROR('8. Forecast Wholesale'!$P$75*N44), "", '8. Forecast Wholesale'!$P$75*N44) -> 
B45: =IF('3. Rate Classes'!Q44=1,'3. Rate Classes'!C44, 0) -> 0 | D45: =IF(ISERROR(VLOOKUP($B45, '3. Rate Classes'!$C$24:$H$45,6,0)), "", VLOOKUP($B45, '3. Rate Classes'!$C$24:$H$45,6,0)) ->  | F45: =VLOOKUP($B45, '10. Adj Conn. to Current WS'!$B$25:$R$47, 17,0) ->  | H45: =VLOOKUP('9. Adj Network to Current WS'!$B45, '4. RRR Data'!$B$27:$M$49,11,0) -> 0 | J45: =VLOOKUP('9. Adj Network to Current WS'!$B45, '4. RRR Data'!$B$27:$M$49,12,0) -> 0 | P45: =IF(ISERROR('8. Forecast Wholesale'!$P$75*N45), "", '8. Forecast Wholesale'!$P$75*N45) -> 
B46: =IF('3. Rate Classes'!Q45=1,'3. Rate Classes'!C45, 0) -> 0 | D46: =IF(ISERROR(VLOOKUP($B46, '3. Rate Classes'!$C$24:$H$45,6,0)), "", VLOOKUP($B46, '3. Rate Classes'!$C$24:$H$45,6,0)) ->  | F46: =VLOOKUP($B46, '10. Adj Conn. to Current WS'!$B$25:$R$47, 17,0) ->  | H46: =VLOOKUP('9. Adj Network to Current WS'!$B46, '4. RRR Data'!$B$27:$M$49,11,0) -> 0 | J46: =VLOOKUP('9. Adj Network to Current WS'!$B46, '4. RRR Data'!$B$27:$M$49,12,0) -> 0 | P46: =IF(ISERROR('8. Forecast Wholesale'!$P$75*N46), "", '8. Forecast Wholesale'!$P$75*N46) -> 
L49: =SUM(L25:L46) -> 6221171.159

Sheet 13. Final 2013 RTS Rates
B13: For Cost of Service Applicants, please enter the following Proposed RTS rates into your rates model. For IRM applicants, please enter these rates into the 2013 IRM Rate Generator, Sheet 11 "Proposed Rates", column I. Please note that the rate description for the RTSRs has been transfered to Sheet 11, Column A from Sheet 4.
B23: Rate Class | D23: Unit | F23: Proposed RTSR Network | H23: Proposed RTSR Connection
B26: =IF('3. Rate Classes'!Q24=1,'3. Rate Classes'!C24, 0) -> Residential | D26: =IF(ISERROR(VLOOKUP($B26, '3. Rate Classes'!$C$24:$H$45,6,0)), "", VLOOKUP($B26, '3. Rate Classes'!$C$24:$H$45,6,0)) -> kWh | F26: =VLOOKUP($B26, '11. Adj Network to Forecast WS'!$B$25:$R$48,17,0) -> 0.007226410503 | H26: =VLOOKUP($B26, '12. Adj Conn. to Forecast WS'!$B$25:$R$48,17,0) -> 0.005686818691
B27: =IF('3. Rate Classes'!Q25=1,'3. Rate Classes'!C25, 0) -> General Service Less Than 50 kW | D27: =IF(ISERROR(VLOOKUP($B27, '3. Rate Classes'!$C$24:$H$45,6,0)), "", VLOOKUP($B27, '3. Rate Classes'!$C$24:$H$45,6,0)) -> kWh | F27: =VLOOKUP($B27, '11. Adj Network to Forecast WS'!$B$25:$R$48,17,0) -> 0.006569464093 | H27: =VLOOKUP($B27, '12. Adj Conn. to Forecast WS'!$B$25:$R$48,17,0) -> 0.005179067022
B28: =IF('3. Rate Classes'!Q26=1,'3. Rate Classes'!C26, 0) -> General Service 50 to 999 kW | D28: =IF(ISERROR(VLOOKUP($B28, '3. Rate Classes'!$C$24:$H$45,6,0)), "", VLOOKUP($B28, '3. Rate Classes'!$C$24:$H$45,6,0)) -> kW | F28: =VLOOKUP($B28, '11. Adj Network to Forecast WS'!$B$25:$R$48,17,0) -> 2.392489332 | H28: =VLOOKUP($B28, '12. Adj Conn. to Forecast WS'!$B$25:$R$48,17,0) -> 1.865479631
B29: =IF('3. Rate Classes'!Q27=1,'3. Rate Classes'!C27, 0) -> General Service 50 to 999 kW - Interval Metered | D29: =IF(ISERROR(VLOOKUP($B29, '3. Rate Classes'!$C$24:$H$45,6,0)), "", VLOOKUP($B29, '3. Rate Classes'!$C$24:$H$45,6,0)) -> kW | F29: =VLOOKUP($B29, '11. Adj Network to Forecast WS'!$B$25:$R$48,17,0) -> 3.066516348 | H29: =VLOOKUP($B29, '12. Adj Conn. to Forecast WS'!$B$25:$R$48,17,0) -> 2.369778589
B30: =IF('3. Rate Classes'!Q28=1,'3. Rate Classes'!C28, 0) -> General Service 1,000 to 4,999 kW | D30: =IF(ISERROR(VLOOKUP($B30, '3. Rate Classes'!$C$24:$H$45,6,0)), "", VLOOKUP($B30, '3. Rate Classes'!$C$24:$H$45,6,0)) -> kW | F30: =VLOOKUP($B30, '11. Adj Network to Forecast WS'!$B$25:$R$48,17,0) -> 3.066516348 | H30: =VLOOKUP($B30, '12. Adj Conn. to Forecast WS'!$B$25:$R$48,17,0) -> 2.369778589
B31: =IF('3. Rate Classes'!Q29=1,'3. Rate Classes'!C29, 0) -> Large Use | D31: =IF(ISERROR(VLOOKUP($B31, '3. Rate Classes'!$C$24:$H$45,6,0)), "", VLOOKUP($B31, '3. Rate Classes'!$C$24:$H$45,6,0)) -> kW | F31: =VLOOKUP($B31, '11. Adj Network to Forecast WS'!$B$25:$R$48,17,0) -> 3.267322967 | H31: =VLOOKUP($B31, '12. Adj Conn. to Forecast WS'!$B$25:$R$48,17,0) -> 2.585776149
B32: =IF('3. Rate Classes'!Q30=1,'3. Rate Classes'!C30, 0) -> Unmetered Scattered Load | D32: =IF(ISERROR(VLOOKUP($B32, '3. Rate Classes'!$C$24:$H$45,6,0)), "", VLOOKUP($B32, '3. Rate Classes'!$C$24:$H$45,6,0)) -> kWh | F32: =VLOOKUP($B32, '11. Adj Network to Forecast WS'!$B$25:$R$48,17,0) -> 0.006569464093 | H32: =VLOOKUP($B32, '12. Adj Conn. to Forecast WS'!$B$25:$R$48,17,0) -> 0.005179067022
B33: =IF('3. Rate Classes'!Q31=1,'3. Rate Classes'!C31, 0) -> Sentinel Lighting | D33: =IF(ISERROR(VLOOKUP($B33, '3. Rate Classes'!$C$24:$H$45,6,0)), "", VLOOKUP($B33, '3. Rate Classes'!$C$24:$H$45,6,0)) -> kW | F33: =VLOOKUP($B33, '11. Adj Network to Forecast WS'!$B$25:$R$48,17,0) -> 1.65024938 | H33: =VLOOKUP($B33, '12. Adj Conn. to Forecast WS'!$B$25:$R$48,17,0) -> 2.190034498
B34: =IF('3. Rate Classes'!Q32=1,'3. Rate Classes'!C32, 0) -> Street Lighting | D34: =IF(ISERROR(VLOOKUP($B34, '3. Rate Classes'!$C$24:$H$45,6,0)), "", VLOOKUP($B34, '3. Rate Classes'!$C$24:$H$45,6,0)) -> kW | F34: =VLOOKUP($B34, '11. Adj Network to Forecast WS'!$B$25:$R$48,17,0) -> 1.622219667 | H34: =VLOOKUP($B34, '12. Adj Conn. to Forecast WS'!$B$25:$R$48,17,0) -> 2.152867076
B35: =IF('3. Rate Classes'!Q33=1,'3. Rate Classes'!C33, 0) -> 0 | D35: =IF(ISERROR(VLOOKUP($B35, '3. Rate Classes'!$C$24:$H$45,6,0)), "", VLOOKUP($B35, '3. Rate Classes'!$C$24:$H$45,6,0)) ->  | F35: =VLOOKUP($B35, '11. Adj Network to Forecast WS'!$B$25:$R$48,17,0) ->  | H35: =VLOOKUP($B35, '12. Adj Conn. to Forecast WS'!$B$25:$R$48,17,0) -> 
B36: =IF('3. Rate Classes'!Q34=1,'3. Rate Classes'!C34, 0) -> 0 | D36: =IF(ISERROR(VLOOKUP($B36, '3. Rate Classes'!$C$24:$H$45,6,0)), "", VLOOKUP($B36, '3. Rate Classes'!$C$24:$H$45,6,0)) ->  | F36: =VLOOKUP($B36, '11. Adj Network to Forecast WS'!$B$25:$R$48,17,0) ->  | H36: =VLOOKUP($B36, '12. Adj Conn. to Forecast WS'!$B$25:$R$48,17,0) -> 
B37: =IF('3. Rate Classes'!Q35=1,'3. Rate Classes'!C35, 0) -> 0 | D37: =IF(ISERROR(VLOOKUP($B37, '3. Rate Classes'!$C$24:$H$45,6,0)), "", VLOOKUP($B37, '3. Rate Classes'!$C$24:$H$45,6,0)) ->  | F37: =VLOOKUP($B37, '11. Adj Network to Forecast WS'!$B$25:$R$48,17,0) ->  | H37: =VLOOKUP($B37, '12. Adj Conn. to Forecast WS'!$B$25:$R$48,17,0) -> 
B38: =IF('3. Rate Classes'!Q36=1,'3. Rate Classes'!C36, 0) -> 0 | D38: =IF(ISERROR(VLOOKUP($B38, '3. Rate Classes'!$C$24:$H$45,6,0)), "", VLOOKUP($B38, '3. Rate Classes'!$C$24:$H$45,6,0)) ->  | F38: =VLOOKUP($B38, '11. Adj Network to Forecast WS'!$B$25:$R$48,17,0) ->  | H38: =VLOOKUP($B38, '12. Adj Conn. to Forecast WS'!$B$25:$R$48,17,0) -> 
B39: =IF('3. Rate Classes'!Q37=1,'3. Rate Classes'!C37, 0) -> 0 | D39: =IF(ISERROR(VLOOKUP($B39, '3. Rate Classes'!$C$24:$H$45,6,0)), "", VLOOKUP($B39, '3. Rate Classes'!$C$24:$H$45,6,0)) ->  | F39: =VLOOKUP($B39, '11. Adj Network to Forecast WS'!$B$25:$R$48,17,0) ->  | H39: =VLOOKUP($B39, '12. Adj Conn. to Forecast WS'!$B$25:$R$48,17,0) -> 
B40: =IF('3. Rate Classes'!Q38=1,'3. Rate Classes'!C38, 0) -> 0 | D40: =IF(ISERROR(VLOOKUP($B40, '3. Rate Classes'!$C$24:$H$45,6,0)), "", VLOOKUP($B40, '3. Rate Classes'!$C$24:$H$45,6,0)) ->  | F40: =VLOOKUP($B40, '11. Adj Network to Forecast WS'!$B$25:$R$48,17,0) ->  | H40: =VLOOKUP($B40, '12. Adj Conn. to Forecast WS'!$B$25:$R$48,17,0) -> 
B41: =IF('3. Rate Classes'!Q39=1,'3. Rate Classes'!C39, 0) -> 0 | D41: =IF(ISERROR(VLOOKUP($B41, '3. Rate Classes'!$C$24:$H$45,6,0)), "", VLOOKUP($B41, '3. Rate Classes'!$C$24:$H$45,6,0)) ->  | F41: =VLOOKUP($B41, '11. Adj Network to Forecast WS'!$B$25:$R$48,17,0) ->  | H41: =VLOOKUP($B41, '12. Adj Conn. to Forecast WS'!$B$25:$R$48,17,0) -> 
B42: =IF('3. Rate Classes'!Q40=1,'3. Rate Classes'!C40, 0) -> 0 | D42: =IF(ISERROR(VLOOKUP($B42, '3. Rate Classes'!$C$24:$H$45,6,0)), "", VLOOKUP($B42, '3. Rate Classes'!$C$24:$H$45,6,0)) ->  | F42: =VLOOKUP($B42, '11. Adj Network to Forecast WS'!$B$25:$R$48,17,0) ->  | H42: =VLOOKUP($B42, '12. Adj Conn. to Forecast WS'!$B$25:$R$48,17,0) -> 
B43: =IF('3. Rate Classes'!Q41=1,'3. Rate Classes'!C41, 0) -> 0 | D43: =IF(ISERROR(VLOOKUP($B43, '3. Rate Classes'!$C$24:$H$45,6,0)), "", VLOOKUP($B43, '3. Rate Classes'!$C$24:$H$45,6,0)) ->  | F43: =VLOOKUP($B43, '11. Adj Network to Forecast WS'!$B$25:$R$48,17,0) ->  | H43: =VLOOKUP($B43, '12. Adj Conn. to Forecast WS'!$B$25:$R$48,17,0) -> 
B44: =IF('3. Rate Classes'!Q42=1,'3. Rate Classes'!C42, 0) -> 0 | D44: =IF(ISERROR(VLOOKUP($B44, '3. Rate Classes'!$C$24:$H$45,6,0)), "", VLOOKUP($B44, '3. Rate Classes'!$C$24:$H$45,6,0)) ->  | F44: =VLOOKUP($B44, '11. Adj Network to Forecast WS'!$B$25:$R$48,17,0) ->  | H44: =VLOOKUP($B44, '12. Adj Conn. to Forecast WS'!$B$25:$R$48,17,0) -> 
B45: =IF('3. Rate Classes'!Q43=1,'3. Rate Classes'!C43, 0) -> 0 | D45: =IF(ISERROR(VLOOKUP($B45, '3. Rate Classes'!$C$24:$H$45,6,0)), "", VLOOKUP($B45, '3. Rate Classes'!$C$24:$H$45,6,0)) ->  | F45: =VLOOKUP($B45, '11. Adj Network to Forecast WS'!$B$25:$R$48,17,0) ->  | H45: =VLOOKUP($B45, '12. Adj Conn. to Forecast WS'!$B$25:$R$48,17,0) -> 
B46: =IF('3. Rate Classes'!Q44=1,'3. Rate Classes'!C44, 0) -> 0 | D46: =IF(ISERROR(VLOOKUP($B46, '3. Rate Classes'!$C$24:$H$45,6,0)), "", VLOOKUP($B46, '3. Rate Classes'!$C$24:$H$45,6,0)) ->  | F46: =VLOOKUP($B46, '11. Adj Network to Forecast WS'!$B$25:$R$48,17,0) ->  | H46: =VLOOKUP($B46, '12. Adj Conn. to Forecast WS'!$B$25:$R$48,17,0) -> 
B47: =IF('3. Rate Classes'!Q45=1,'3. Rate Classes'!C45, 0) -> 0 | D47: =IF(ISERROR(VLOOKUP($B47, '3. Rate Classes'!$C$24:$H$45,6,0)), "", VLOOKUP($B47, '3. Rate Classes'!$C$24:$H$45,6,0)) ->  | F47: =VLOOKUP($B47, '11. Adj Network to Forecast WS'!$B$25:$R$48,17,0) ->  | H47: =VLOOKUP($B47, '12. Adj Conn. to Forecast WS'!$B$25:$R$48,17,0) -> 

Sheet hidden1 (hidden)
A1: =IF('3. Rate Classes'!Q24=1, '3. Rate Classes'!C24, "") -> Residential | B1: 1
A2: =IF('3. Rate Classes'!Q25=1, '3. Rate Classes'!C25, "") -> General Service Less Than 50 kW | B2: 2
A3: =IF('3. Rate Classes'!Q26=1, '3. Rate Classes'!C26, "") -> General Service 50 to 999 kW | B3: 3
A4: =IF('3. Rate Classes'!Q27=1, '3. Rate Classes'!C27, "") -> General Service 50 to 999 kW - Interval Metered | B4: 4
A5: =IF('3. Rate Classes'!Q28=1, '3. Rate Classes'!C28, "") -> General Service 1,000 to 4,999 kW | B5: 5
A6: =IF('3. Rate Classes'!Q29=1, '3. Rate Classes'!C29, "") -> Large Use | B6: 6
A7: =IF('3. Rate Classes'!Q30=1, '3. Rate Classes'!C30, "") -> Unmetered Scattered Load | B7: 7
A8: =IF('3. Rate Classes'!Q31=1, '3. Rate Classes'!C31, "") -> Sentinel Lighting | B8: 8
A9: =IF('3. Rate Classes'!Q32=1, '3. Rate Classes'!C32, "") -> Street Lighting | B9: 9
A10: =IF('3. Rate Classes'!Q33=1, '3. Rate Classes'!C33, "") ->  | B10: 10
A11: =IF('3. Rate Classes'!Q34=1, '3. Rate Classes'!C34, "") ->  | B11: 11
A12: =IF('3. Rate Classes'!Q35=1, '3. Rate Classes'!C35, "") ->  | B12: 12
A13: =IF('3. Rate Classes'!Q36=1, '3. Rate Classes'!C36, "") ->  | B13: 13
A14: =IF('3. Rate Classes'!Q37=1, '3. Rate Classes'!C37, "") ->  | B14: 14
A15: =IF('3. Rate Classes'!Q38=1, '3. Rate Classes'!C38, "") ->  | B15: 15
A16: =IF('3. Rate Classes'!Q39=1, '3. Rate Classes'!C39, "") ->  | B16: 16
A17: =IF('3. Rate Classes'!Q40=1, '3. Rate Classes'!C40, "") ->  | B17: 17
A18: =IF('3. Rate Classes'!Q41=1, '3. Rate Classes'!C41, "") ->  | B18: 18
A19: =IF('3. Rate Classes'!Q42=1, '3. Rate Classes'!C42, "") ->  | B19: 19
A20: =IF('3. Rate Classes'!Q43=1, '3. Rate Classes'!C43, "") ->  | B20: 20
A21: =IF('3. Rate Classes'!Q44=1, '3. Rate Classes'!C44, "") ->  | B21: 21
A22: =IF('3. Rate Classes'!Q45=1, '3. Rate Classes'!C45, "") ->  | B22: 22
